Workbook

Sheet ArenaRobotConfig
B1: Id | C1: RobotName | D1: RobotLevel | E1: RobotScore | F1: RoleId | G1: RoleLv | H1: DifferDemonsId | I1: DifferDemonsLv | J1: PoolId | K1: Nouse
B2: int | C2: string | D2: int | E2: int | F2: mut,int#int,1 | G2: int | H2: mut,int#int,1 | I2: int | J2: int | K2: string
B3: 4 | C3: 4 | D3: 4 | E3: 4 | F3: 4 | G3: 4 | H3: 4 | I3: 4 | J3: 4 | K3: 0
B4: 索引 | C4: 机器人姓名 | D4: 机器人玩家等级 | E4: 机器人玩家积分 | F4: 妖灵师列表 | G4: 妖灵师对应等级 | H4: 异妖列表 | I4: 异妖阶级 | J4: 所属库id | K4: 策划备注
A5: 默认值 | B5: 0 | E5: 0 | F5: null | G5: 0 | H5: null | I5: 0
A6: 正确性校对
A7: 校对值
B8: 1 | C8: 微生哲远 | D8: 9 | E8: 960 | F8: 10064#10048#10053#10050#10054#10052 | G8: 20 | J8: 1
B9: 2 | C9: 长孙骏勇 | D9: 9 | E9: 985 | F9: 10047#10048#10053#10050#10059#10052 | G9: 18 | J9: 1
B10: 3 | C10: 夹谷骏家 | D10: 8 | E10: 963 | F10: 10047#10048#10049#10050#10051#10052 | G10: 22 | J10: 1
B11: 4 | C11: 闾丘帝晖 | D11: 8 | E11: 985 | F11: 10047#10048#10049#10050#10051#10052 | G11: 18 | J11: 1
B12: 5 | C12: 柳震荣 | D12: 10 | E12: 978 | F12: 10064#10048#10070#10050#10054#10052 | G12: 21 | J12: 1
B13: 6 | C13: 谷梁帝博 | D13: 10 | E13: 972 | F13: 10047#10048#10053#10050#10051#10052 | G13: 21 | J13: 1
B14: 7 | C14: 云濡驰 | D14: 10 | E14: 961 | F14: 10047#10048#10049#10050#10054#10052 | G14: 19 | J14: 1
B15: 8 | C15: 东郭骏家 | D15: 9 | E15: 954 | F15: 10047#10061#10053#10050#10054#10052 | G15: 22 | J15: 1
B16: 9 | C16: 卫运林 | D16: 8 | E16: 958 | F16: 10047#10048#10049#10050#10054#10052 | G16: 19 | J16: 1
B17: 10 | C17: 方濡驰 | D17: 9 | E17: 976 | F17: 10047#10048#10053#10066#10051#10052 | G17: 20 | J17: 1
B18: 11 | C18: 褚师逸芃 | D18: 10 | E18: 984 | F18: 10047#10048#10072#10050#10069#10052 | G18: 22 | J18: 1
B19: 12 | C19: 司空骏暄 | D19: 9 | E19: 978 | F19: 10047#10061#10053#10050#10054#10052 | G19: 22 | J19: 1
B20: 13 | C20: 钱濡初 | D20: 8 | E20: 985 | F20: 10047#10048#10049#10050#10054#10052 | G20: 18 | J20: 1
B21: 14 | C21: 南荣桂美 | D21: 10 | E21: 966 | F21: 10047#10057#10053#10050#10054#10060 | G21: 21 | J21: 1
B22: 15 | C22: 昌家祥 | D22: 10 | E22: 995 | F22: 10047#10048#10072#10050#10058#10052 | G22: 21 | J22: 1
B23: 16 | C23: 子书骏家 | D23: 13 | E23: 1010 | F23: 10047#10057#10053#10066#10054#10065 | G23: 37 | J23: 2
B24: 17 | C24: 皇甫濡驰 | D24: 15 | E24: 1001 | F24: 10047#10048#10049#10068#10069#10065 | G24: 35 | J24: 2
B25: 18 | C25: 史信轩 | D25: 15 | E25: 1016 | F25: 10047#10048#10053#10050#10069#10052 | G25: 34 | J25: 2
B26: 19 | C26: 宗政骞逸 | D26: 14 | E26: 1034 | F26: 10047#10048#10072#10067#10069#10052 | G26: 33 | J26: 2
B27: 20 | C27: 呼延佑骏 | D27: 13 | E27: 1031 | F27: 10047#10057#10049#10068#10069#10052 | G27: 37 | J27: 2
B28: 21 | C28: 濮阳歆岚 | D28: 15 | E28: 1016 | F28: 10062#10061#10070#10050#10051#10052 | G28: 34 | J28: 2
B29: 22 | C29: 郎炳天 | D29: 12 | E29: 1054 | F29: 10047#10061#10049#10050#10069#10060 | G29: 36 | J29: 2
B30: 23 | C30: 赵辰鸿 | D30: 15 | E30: 1038 | F30: 10064#10061#10053#10050#10059#10052 | G30: 30 | J30: 2
B31: 24 | C31: 漆雕妍雨 | D31: 13 | E31: 1012 | F31: 10047#10048#10071#10066#10054#10065 | G31: 30 | J31: 2
B32: 25 | C32: 姜晨星 | D32: 14 | E32: 1056 | F32: 10047#10061#10049#10068#10054#10060 | G32: 37 | J32: 2
B33: 26 | C33: 轩辕天辰 | D33: 14 | E33: 1059 | F33: 10064#10048#10071#10050#10058#10052 | G33: 30 | J33: 2
B34: 27 | C34: 独孤晨晓 | D34: 15 | E34: 1047 | F34: 10047#10061#10049#10068#10058#10052 | G34: 36 | J34: 2
B35: 28 | C35: 申屠成强 | D35: 12 | E35: 1004 | F35: 10047#10048#10071#10067#10058#10052 | G35: 30 | J35: 2
B36: 29 | C36: 孔嘉瑞 | D36: 12 | E36: 1007 | F36: 10047#10057#10049#10067#10054#10060 | G36: 31 | J36: 2
B37: 30 | C37: 奚睿振 | D37: 14 | E37: 1042 | F37: 10047#10057#10072#10050#10059#10052 | G37: 36 | J37: 2
B38: 31 | C38: 公仲禧轩 | D38: 12 | E38: 1008 | F38: 10047#10057#10072#10066#10054#10052 | G38: 33 | J38: 2
B39: 32 | C39: 仲孙锐辰 | D39: 13 | E39: 1038 | F39: 10047#10048#10072#10066#10069#10052 | G39: 30 | J39: 2
B40: 33 | C40: 贯丘驰振 | D40: 14 | E40: 1022 | F40: 10047#10061#10070#10050#10054#10060 | G40: 35 | J40: 2
B41: 34 | C41: 奚林爵 | D41: 12 | E41: 1056 | F41: 10047#10061#10049#10067#10069#10052 | G41: 33 | J41: 2
B42: 35 | C42: 南宫祯家 | D42: 12 | E42: 1056 | F42: 10047#10048#10070#10066#10069#10052 | G42: 31 | J42: 2
B43: 36 | C43: 端木寅康 | D43: 15 | E43: 1057 | F43: 10062#10048#10053#10050#10058#10060 | G43: 37 | J43: 2
B44: 37 | C44: 赵远杰 | D44: 13 | E44: 1032 | F44: 10062#10048#10049#10066#10058#10052 | G44: 36 | J44: 2
B45: 38 | C45: 西门彤岚 | D45: 15 | E45: 1006 | F45: 10062#10061#10049#10050#10054#10060 | G45: 34 | J45: 2
B46: 39 | C46: 俞钊康 | D46: 14 | E46: 1012 | F46: 10047#10061#10070#10050#10054#10065 | G46: 35 | J46: 2
B47: 40 | C47: 李骏暄 | D47: 14 | E47: 1016 | F47: 10047#10048#10071#10066#10051#10065 | G47: 32 | J47: 2
B48: 41 | C48: 酆璐凡 | D48: 13 | E48: 1059 | F48: 10064#10048#10053#10068#10051#10060 | G48: 37 | J48: 2
B49: 42 | C49: 拓跋博骏 | D49: 13 | E49: 1041 | F49: 10047#10048#10053#10067#10069#10063 | G49: 34 | J49: 2
B50: 43 | C50: 呼延锦烁 | D50: 12 | E50: 1043 | F50: 10047#10048#10070#10067#10054#10063 | G50: 33 | J50: 2
B51: 44 | C51: 公祖蔓辰 | D51: 14 | E51: 1008 | F51: 10047#10048#10070#10068#10059#10052 | G51: 30 | J51: 2
B52: 45 | C52: 南宫睿振 | D52: 14 | E52: 1031 | F52: 10062#10048#10049#10050#10058#10065 | G52: 37 | J52: 2
B53: 46 | C53: 子车炳成 | D53: 22 | E53: 1119 | F53: 10062#10007#10071#10066#10040#10065 | G53: 45 | J53: 3
B54: 47 | C54: 谢辰运 | D54: 20 | E54: 1074 | F54: 10064#10061#10038#10066#10030#10063 | G54: 49 | J54: 3
B55: 48 | C55: 水凡腾 | D55: 21 | E55: 1064 | F55: 10062#10061#10042#10023#10059#10065 | G55: 49 | J55: 3
B56: 49 | C56: 郑嘉瑞 | D56: 25 | E56: 1086 | F56: 10064#10057#10071#10029#10058#10032 | G56: 49 | J56: 3
B57: 50 | C57: 华荣谛 | D57: 23 | E57: 1087 | F57: 10064#10005#10072#10067#10040#10063 | G57: 48 | J57: 3
B58: 51 | C58: 许相如 | D58: 23 | E58: 1120 | F58: 10003#10061#10016#10066#10058#10063 | G58: 45 | J58: 3
B59: 52 | C59: 微生逸星 | D59: 24 | E59: 1094 | F59: 10064#10057#10070#10066#10013#10090 | G59: 42 | J59: 3
B60: 53 | C60: 葛濡初 | D60: 25 | E60: 1118 | F60: 10018#10061#10070#10012#10058#10065 | G60: 47 | J60: 3
B61: 54 | C61: 公门雪芙 | D61: 25 | E61: 1111 | F61: 10062#10057#10042#10067#10069#10046 | G61: 50 | J61: 3
B62: 55 | C62: 金运钊 | D62: 21 | E62: 1075 | F62: 10062#10057#10071#10043#10045#10063 | G62: 47 | J62: 3
B63: 56 | C63: 公山成辰 | D63: 21 | E63: 1061 | F63: 10062#10002#10071#10028#10059#10065 | G63: 42 | J63: 3
B64: 57 | C64: 水昭彤 | D64: 25 | E64: 1062 | F64: 10064#10057#10008#10068#10058#10032 | G64: 44 | J64: 3
B65: 58 | C65: 姜梁升 | D65: 24 | E65: 1080 | F65: 10019#10057#10071#10009#10059#10063 | G65: 43 | J65: 3
B66: 59 | C66: 呼延嘉瑞 | D66: 21 | E66: 1095 | F66: 10062#10061#10038#10068#10069#10026 | G66: 48 | J66: 3
B67: 60 | C67: 公仲祥远 | D67: 25 | E67: 1090 | F67: 10019#10057#10071#10029#10059#10065 | G67: 44 | J67: 3
B68: 61 | C68: 葛雨雅 | D68: 20 | E68: 1063 | F68: 10062#10010#10070#10067#10031#10060 | G68: 49 | J68: 3
B69: 62 | C69: 鲍辰祜 | D69: 25 | E69: 1102 | F69: 10064#10057#10004#10067#10059#10090 | G69: 49 | J69: 3
B70: 63 | C70: 王中树 | D70: 20 | E70: 1068 | F70: 10064#10057#10070#10068#10089#10014 | G70: 44 | J70: 3
B71: 64 | C71: 公坚烁梁 | D71: 25 | E71: 1063 | F71: 10018#10057#10070#10068#10069#10014 | G71: 47 | J71: 3
B72: 65 | C72: 公仪澄驰 | D72: 21 | E72: 1120 | F72: 10062#10087#10004#10066#10058#10063 | G72: 48 | J72: 3
B73: 66 | C73: 韦德杰 | D73: 22 | E73: 1084 | F73: 10019#10005#10071#10068#10069#10060 | G73: 51 | J73: 3
B74: 67 | C74: 柏馨美 | D74: 23 | E74: 1109 | F74: 10062#10057#10004#10067#10058#10090 | G74: 48 | J74: 3
B75: 68 | C75: 韦腾锟 | D75: 23 | E75: 1084 | F75: 10036#10057#10072#10068#10059#10033 | G75: 51 | J75: 3
B76: 69 | C76: 范振然 | D76: 23 | E76: 1061 | F76: 10062#10007#10070#10022#10059#10060 | G76: 49 | J76: 3
B77: 70 | C77: 任年骞 | D77: 21 | E77: 1114 | F77: 10018#10057#10072#10066#10045#10060 | G77: 49 | J77: 3
B78: 71 | C78: 鲍骞权 | D78: 21 | E78: 1066 | F78: 10006#10057#10070#10067#10058#10014 | G78: 44 | J78: 3
B79: 72 | C79: 卫辰韦 | D79: 20 | E79: 1120 | F79: 10062#10057#10016#10066#10058#10032 | G79: 43 | J79: 3
B80: 73 | C80: 邹良佑 | D80: 24 | E80: 1116 | F80: 10062#10057#10070#10009#10015#10060 | G80: 46 | J80: 3
B81: 74 | C81: 马爵初 | D81: 24 | E81: 1084 | F81: 10064#10061#10011#10068#10058#10014 | G81: 51 | J81: 3
B82: 75 | C82: 孙帝晖 | D82: 24 | E82: 1098 | F82: 10064#10010#10072#10012#10058#10060 | G82: 46 | J82: 3
B83: 76 | C83: 万俟辰星 | D83: 33 | E83: 1125 | F83: 10044#10002#10071#10029#10024#10026 | G83: 63 | J83: 4
B84: 77 | C84: 戚阳晨 | D84: 33 | E84: 1164 | F84: 10034#10007#10042#10088#10069#10027 | G84: 60 | J84: 4
B85: 78 | C85: 陶晖辞 | D85: 34 | E85: 1144 | F85: 10019#10007#10042#10009#10015#10063 | G85: 63 | J85: 4
B86: 79 | C86: 姜辰运 | D86: 35 | E86: 1123 | F86: 10018#10010#10072#10039#10030#10090 | G86: 63 | J86: 4
B87: 80 | C87: 乐正锦烁 | D87: 35 | E87: 1153 | F87: 10019#10010#10021#10012#10015#10017 | G87: 62 | J87: 4
B88: 81 | C88: 公仪骞权 | D88: 34 | E88: 1133 | F88: 10001#10035#10011#10088#10059#10033 | G88: 65 | J88: 4
B89: 82 | C89: 公仪优初 | D89: 32 | E89: 1134 | F89: 10019#10002#10070#10028#10013#10032 | G89: 66 | J89: 4
B90: 83 | C90: 周成强 | D90: 34 | E90: 1179 | F90: 10062#10005#10004#10023#10015#10014 | G90: 63 | J90: 4
B91: 84 | C91: 花荣谛 | D91: 30 | E91: 1176 | F91: 10018#10087#10008#10067#10031#10027 | G91: 61 | J91: 4
B92: 85 | C92: 仲孙宇嘉 | D92: 32 | E92: 1124 | F92: 10018#10085#10008#10028#10058#10014 | G92: 62 | J92: 4
B93: 86 | C93: 公伯天辰 | D93: 32 | E93: 1137 | F93: 10044#10002#10086#10022#10025#10060 | G93: 63 | J93: 4
B94: 87 | C94: 谢锐星 | D94: 33 | E94: 1130 | F94: 10018#10061#10016#10009#10025#10032 | G94: 59 | J94: 4
B95: 88 | C95: 雷泽皓 | D95: 31 | E95: 1163 | F95: 10062#10010#10042#10028#10030#10033 | G95: 63 | J95: 4
B96: 89 | C96: 公仪炳成 | D96: 30 | E96: 1150 | F96: 10001#10087#10086#10067#10015#10017 | G96: 60 | J96: 4
B97: 90 | C97: 苏鑫鸿 | D97: 35 | E97: 1123 | F97: 10003#10035#10008#10022#10013#10032 | G97: 66 | J97: 4
B98: 91 | C98: 史允权 | D98: 35 | E98: 1162 | F98: 10003#10085#10004#10029#10040#10033 | G98: 64 | J98: 4
B99: 92 | C99: 昌蔓鑫 | D99: 34 | E99: 1163 | F99: 10044#10007#10004#10039#10089#10032 | G99: 66 | J99: 4
B100: 93 | C100: 孙皓宇 | D100: 33 | E100: 1159 | F100: 10006#10037#10011#10039#10024#10017 | G100: 60 | J100: 4
B101: 94 | C101: 蒋涛家 | D101: 30 | E101: 1143 | F101: 10001#10020#10021#10039#10024#10026 | G101: 61 | J101: 4
B102: 95 | C102: 花荣谛 | D102: 35 | E102: 1126 | F102: 10044#10085#10008#10028#10013#10026 | G102: 64 | J102: 4
B103: 96 | C103: 东郭昭彤 | D103: 33 | E103: 1142 | F103: 10034#10007#10042#10009#10031#10046 | G103: 66 | J103: 4
B104: 97 | C104: 鲍宇潍 | D104: 32 | E104: 1180 | F104: 10019#10087#10021#10009#10031#10033 | G104: 60 | J104: 4
B105: 98 | C105: 慕容辰翰 | D105: 33 | E105: 1139 | F105: 10001#10085#10016#10039#10025#10046 | G105: 63 | J105: 4
B106: 99 | C106: 褚师振晨 | D106: 35 | E106: 1127 | F106: 10036#10002#10004#10009#10089#10041 | G106: 60 | J106: 4
B107: 100 | C107: 欧阳俊晨 | D107: 32 | E107: 1134 | F107: 10034#10035#10011#10028#10025#10033 | G107: 60 | J107: 4
B108: 101 | C108: 慕容裕帝 | D108: 33 | E108: 1180 | F108: 10003#10007#10011#10028#10025#10090 | G108: 65 | J108: 4
B109: 102 | C109: 俞逸远 | D109: 31 | E109: 1166 | F109: 10003#10037#10016#10022#10015#10041 | G109: 66 | J109: 4
B110: 103 | C110: 段干槐裕 | D110: 35 | E110: 1167 | F110: 10003#10010#10004#10088#10015#10090 | G110: 66 | J110: 4
B111: 104 | C111: 褚师振晨 | D111: 35 | E111: 1142 | F111: 10019#10037#10042#10022#10015#10014 | G111: 66 | J111: 4
B112: 105 | C112: 欧阳俊晨 | D112: 35 | E112: 1158 | F112: 10003#10010#10011#10009#10024#10041 | G112: 66 | J112: 4
B113: 106 | C113: 慕容裕帝 | D113: 32 | E113: 1164 | F113: 10001#10007#10008#10009#10030#10046 | G113: 65 | J113: 4
B114: 107 | C114: 俞逸远 | D114: 33 | E114: 1153 | F114: 10034#10010#10042#10028#10045#10041 | G114: 62 | J114: 4
B115: 108 | C115: 慕容裕帝 | D115: 32 | E115: 1139 | F115: 10019#10020#10011#10012#10024#10046 | G115: 60 | J115: 4
B116: 109 | C116: 俞逸远 | D116: 35 | E116: 1154 | F116: 10003#10085#10011#10022#10024#10027 | G116: 65 | J116: 4
B117: 110 | C117: 公门运骏 | D117: 45 | E117: 1233 | F117: 10044#10005#10004#10023#10045#10014 | G117: 75 | J117: 5
B118: 111 | C118: 拓跋帝祥 | D118: 42 | E118: 1188 | F118: 10018#10037#10016#10088#10031#10046 | G118: 84 | J118: 5
B119: 112 | C119: 公门皓宇 | D119: 45 | E119: 1181 | F119: 10006#10020#10011#10023#10089#10041 | G119: 81 | J119: 5
B120: 113 | C120: 子桑泽海 | D120: 43 | E120: 1230 | F120: 10003#10020#10038#10023#10089#10027 | G120: 85 | J120: 5
B121: 114 | C121: 公西龙骞 | D121: 42 | E121: 1246 | F121: 10003#10035#10016#10029#10024#10033 | G121: 82 | J121: 5
B122: 115 | C122: 壤驷柏祯 | D122: 44 | E122: 1238 | F122: 10036#10007#10011#10023#10089#10046 | G122: 84 | J122: 5
B123: 116 | C123: 戚阳晨 | D123: 42 | E123: 1250 | F123: 10003#10010#10004#10012#10015#10090 | G123: 77 | J123: 5
B124: 117 | C124: 陶晖辞 | D124: 41 | E124: 1211 | F124: 10006#10035#10038#10022#10030#10033 | G124: 79 | J124: 5
B125: 118 | C125: 姜辰运 | D125: 42 | E125: 1221 | F125: 10034#10035#10021#10012#10031#10027 | G125: 73 | J125: 5
B126: 119 | C126: 章骞峰 | D126: 44 | E126: 1193 | F126: 10034#10002#10042#10039#10089#10017 | G126: 76 | J126: 5
B127: 120 | C127: 贯丘骏勇 | D127: 44 | E127: 1206 | F127: 10003#10005#10004#10023#10031#10046 | G127: 83 | J127: 5
B128: 121 | C128: 漆雕禧轩 | D128: 44 | E128: 1217 | F128: 10036#10085#10086#10029#10024#10032 | G128: 81 | J128: 5
B129: 122 | C129: 乐正锦烁 | D129: 43 | E129: 1230 | F129: 10006#10002#10008#10043#10031#10033 | G129: 74 | J129: 5
B130: 123 | C130: 公仪骞权 | D130: 41 | E130: 1206 | F130: 10001#10037#10011#10023#10045#10014 | G130: 76 | J130: 5
B131: 124 | C131: 端木腾休 | D131: 42 | E131: 1186 | F131: 10001#10005#10042#10012#10015#10032 | G131: 77 | J131: 5
B132: 125 | C132: 卫辰韦 | D132: 43 | E132: 1245 | F132: 10034#10035#10004#10012#10015#10017 | G132: 84 | J132: 5
B133: 126 | C133: 邹良佑 | D133: 41 | E133: 1242 | F133: 10019#10035#10038#10043#10030#10041 | G133: 79 | J133: 5
B134: 127 | C134: 马爵初 | D134: 41 | E134: 1235 | F134: 10019#10005#10042#10029#10045#10027 | G134: 76 | J134: 5
B135: 128 | C135: 孙帝晖 | D135: 45 | E135: 1237 | F135: 10044#10037#10042#10012#10013#10027 | G135: 78 | J135: 5
B136: 129 | C136: 万俟辰星 | D136: 42 | E136: 1240 | F136: 10019#10007#10011#10028#10040#10026 | G136: 78 | J136: 5
B137: 130 | C137: 戚阳晨 | D137: 43 | E137: 1209 | F137: 10036#10020#10038#10029#10025#10041 | G137: 84 | J137: 5
B138: 131 | C138: 陶晖辞 | D138: 45 | E138: 1208 | F138: 10006#10020#10011#10039#10089#10014 | G138: 83 | J138: 5
B139: 132 | C139: 姜辰运 | D139: 43 | E139: 1250 | F139: 10044#10010#10086#10028#10030#10027 | G139: 76 | J139: 5
B140: 133 | C140: 乐正锦烁 | D140: 41 | E140: 1237 | F140: 10006#10020#10038#10039#10045#10033 | G140: 78 | J140: 5
B141: 134 | C141: 公仪骞权 | D141: 42 | E141: 1232 | F141: 10003#10035#10042#10043#10015#10032 | G141: 82 | J141: 5
B142: 135 | C142: 公仪优初 | D142: 45 | E142: 1201 | F142: 10044#10035#10086#10023#10030#10033 | G142: 79 | J142: 5
B143: 136 | C143: 周成强 | D143: 41 | E143: 1235 | F143: 10006#10085#10004#10039#10040#10032 | G143: 77 | J143: 5
B144: 137 | C144: 花荣谛 | D144: 45 | E144: 1222 | F144: 10036#10035#10042#10028#10030#10046 | G144: 83 | J144: 5
B145: 138 | C145: 仲孙宇嘉 | D145: 44 | E145: 1197 | F145: 10003#10005#10011#10009#10030#10032 | G145: 76 | J145: 5
B146: 139 | C146: 公伯天辰 | D146: 43 | E146: 1242 | F146: 10018#10085#10011#10029#10031#10027 | G146: 85 | J146: 5
B147: 140 | C147: 皇甫运康 | D147: 61 | E147: 1253 | F147: 10018#10010#10016#10022#10040#10027 | G147: 101 | J147: 6
B148: 141 | C148: 韩允权 | D148: 69 | E148: 1276 | F148: 10044#10085#10016#10009#10015#10017 | G148: 100 | J148: 6
B149: 142 | C149: 公仪优初 | D149: 65 | E149: 1346 | F149: 10001#10087#10021#10009#10013#10014 | G149: 102 | J149: 6
B150: 143 | C150: 东宫炳辰 | D150: 65 | E150: 1284 | F150: 10001#10087#10004#10022#10024#10041 | G150: 107 | J150: 6
B151: 144 | C151: 周成强 | D151: 67 | E151: 1320 | F151: 10036#10005#10021#10009#10015#10090 | G151: 104 | J151: 6
B152: 145 | C152: 严睿振 | D152: 68 | E152: 1288 | F152: 10003#10005#10038#10023#10013#10032 | G152: 117 | J152: 6
B153: 146 | C153: 潘睿栋 | D153: 70 | E153: 1259 | F153: 10003#10002#10038#10088#10089#10026 | G153: 109 | J153: 6
B154: 147 | C154: 贯丘辰贤 | D154: 64 | E154: 1340 | F154: 10034#10010#10011#10029#10030#10033 | G154: 110 | J154: 6
B155: 148 | C155: 鲁辰震 | D155: 68 | E155: 1264 | F155: 10044#10010#10086#10012#10040#10026 | G155: 113 | J155: 6
B156: 149 | C156: 潘锦栋 | D156: 61 | E156: 1286 | F156: 10036#10085#10021#10028#10013#10041 | G156: 119 | J156: 6
B157: 150 | C157: 岑歆岚 | D157: 67 | E157: 1260 | F157: 10006#10005#10038#10012#10015#10014 | G157: 107 | J157: 6
B158: 151 | C158: 施运康 | D158: 64 | E158: 1273 | F158: 10019#10037#10004#10029#10045#10026 | G158: 108 | J158: 6
B159: 152 | C159: 宇文梓振 | D159: 70 | E159: 1304 | F159: 10018#10005#10004#10028#10030#10041 | G159: 112 | J159: 6
B160: 153 | C160: 褚师运鸿 | D160: 61 | E160: 1307 | F160: 10036#10005#10008#10022#10089#10046 | G160: 101 | J160: 6
B161: 154 | C161: 太叔姿芝 | D161: 65 | E161: 1266 | F161: 10019#10005#10038#10012#10015#10032 | G161: 103 | J161: 6
B162: 155 | C162: 公门濡骞 | D162: 64 | E162: 1337 | F162: 10006#10087#10021#10023#10040#10027 | G162: 103 | J162: 6
B163: 156 | C163: 百里萱雪 | D163: 62 | E163: 1265 | F163: 10003#10037#10086#10088#10024#10026 | G163: 101 | J163: 6
B164: 157 | C164: 公仪炳成 | D164: 60 | E164: 1302 | F164: 10018#10005#10008#10028#10024#10032 | G164: 117 | J164: 6
B165: 158 | C165: 梁丘腾锟 | D165: 70 | E165: 1324 | F165: 10001#10035#10008#10028#10013#10017 | G165: 101 | J165: 6
B166: 159 | C166: 施逸振 | D166: 68 | E166: 1256 | F166: 10044#10002#10016#10039#10024#10017 | G166: 120 | J166: 6
B167: 160 | C167: 第五桂依 | D167: 62 | E167: 1280 | F167: 10044#10002#10021#10088#10015#10090 | G167: 119 | J167: 6
B168: 161 | C168: 司寇采欢 | D168: 70 | E168: 1307 | F168: 10034#10035#10011#10088#10040#10027 | G168: 101 | J168: 6
B169: 162 | C169: 壤驷相如 | D169: 65 | E169: 1295 | F169: 10036#10002#10008#10023#10024#10027 | G169: 107 | J169: 6
B170: 163 | C170: 苏鑫鸿 | D170: 61 | E170: 1332 | F170: 10036#10087#10042#10009#10040#10027 | G170: 112 | J170: 6
B171: 164 | C171: 公良睿运 | D171: 61 | E171: 1271 | F171: 10003#10035#10004#10088#10040#10014 | G171: 107 | J171: 6
B172: 165 | C172: 袁祥远 | D172: 66 | E172: 1317 | F172: 10001#10037#10042#10009#10031#10090 | G172: 116 | J172: 6
B173: 166 | C173: 司空文延 | D173: 65 | E173: 1343 | F173: 10006#10037#10016#10028#10025#10032 | G173: 100 | J173: 6
B174: 167 | C174: 金辰起 | D174: 60 | E174: 1301 | F174: 10018#10037#10004#10009#10030#10033 | G174: 109 | J174: 6
B175: 168 | C175: 仲孙宇嘉 | D175: 69 | E175: 1311 | F175: 10036#10002#10021#10028#10015#10026 | G175: 112 | J175: 6
B176: 169 | C176: 段干桂美 | D176: 70 | E176: 1334 | F176: 10036#10020#10021#10009#10089#10017 | G176: 101 | J176: 6
B177: 170 | C177: 郑雪璐 | D177: 100 | E177: 1411 | F177: 10006#10002#10086#10088#10025#10032 | G177: 174 | J177: 7
B178: 171 | C178: 吴驰嘉 | D178: 91 | E178: 1369 | F178: 10006#10010#10016#10088#10045#10017 | G178: 155 | J178: 7
B179: 172 | C179: 史哲仕 | D179: 100 | E179: 1354 | F179: 10044#10037#10038#10022#10013#10017 | G179: 178 | J179: 7
B180: 173 | C180: 公伯天辰 | D180: 90 | E180: 1372 | F180: 10034#10037#10086#10029#10024#10041 | G180: 175 | J180: 7
B181: 174 | C181: 闻人良佑 | D181: 87 | E181: 1417 | F181: 10036#10020#10042#10012#10025#10014 | G181: 178 | J181: 7
B182: 175 | C182: 吕星畅 | D182: 105 | E182: 1435 | F182: 10018#10087#10008#10012#10015#10027 | G182: 168 | J182: 7
B183: 176 | C183: 谢锐星 | D183: 98 | E183: 1415 | F183: 10006#10035#10086#10028#10015#10026 | G183: 149 | J183: 7
B184: 177 | C184: 公户沛梦 | D184: 105 | E184: 1355 | F184: 10006#10005#10086#10009#10024#10032 | G184: 165 | J184: 7
B185: 178 | C185: 公仲桓初 | D185: 99 | E185: 1449 | F185: 10018#10005#10021#10012#10040#10046 | G185: 173 | J185: 7
B186: 179 | C186: 贯丘佳胤 | D186: 87 | E186: 1408 | F186: 10019#10010#10042#10043#10031#10014 | G186: 154 | J186: 7
B187: 180 | C187: 公羊然骏 | D187: 91 | E187: 1354 | F187: 10006#10037#10008#10088#10030#10090 | G187: 168 | J187: 7
B188: 181 | C188: 呼延天禧 | D188: 87 | E188: 1442 | F188: 10036#10037#10042#10028#10025#10090 | G188: 180 | J188: 7
B189: 182 | C189: 雷泽皓 | D189: 85 | E189: 1383 | F189: 10001#10020#10016#10022#10031#10090 | G189: 169 | J189: 7
B190: 183 | C190: 万俟辰星 | D190: 93 | E190: 1421 | F190: 10034#10007#10004#10012#10024#10033 | G190: 165 | J190: 7
B191: 184 | C191: 段干运钊 | D191: 93 | E191: 1412 | F191: 10001#10002#10042#10029#10030#10014 | G191: 151 | J191: 7
B192: 185 | C192: 许睿栋 | D192: 90 | E192: 1416 | F192: 10036#10020#10008#10088#10015#10033 | G192: 179 | J192: 7
B193: 186 | C193: 孙珍蔚 | D193: 97 | E193: 1436 | F193: 10019#10010#10038#10088#10015#10026 | G193: 175 | J193: 7
B194: 187 | C194: 东郭逸芃 | D194: 90 | E194: 1385 | F194: 10019#10002#10038#10029#10031#10017 | G194: 144 | J194: 7
B195: 188 | C195: 宗政然澄 | D195: 100 | E195: 1381 | F195: 10036#10087#10011#10022#10025#10017 | G195: 152 | J195: 7
B196: 189 | C196: 何龙中 | D196: 103 | E196: 1448 | F196: 10018#10087#10038#10043#10031#10017 | G196: 166 | J196: 7
B197: 190 | C197: 南荣龙中 | D197: 102 | E197: 1402 | F197: 10036#10035#10038#10039#10025#10027 | G197: 157 | J197: 7
B198: 191 | C198: 公坚炳天 | D198: 95 | E198: 1404 | F198: 10003#10007#10004#10088#10015#10033 | G198: 148 | J198: 7
B199: 192 | C199: 慕容恒震 | D199: 85 | E199: 1383 | F199: 10036#10007#10021#10023#10013#10041 | G199: 170 | J199: 7
B200: 193 | C200: 昌信轩 | D200: 105 | E200: 1441 | F200: 10044#10087#10016#10043#10013#10027 | G200: 162 | J200: 7
... 64 more rows

Sheet Sheet1
A1: id | B1: 等级 | C1: 玩家等级 | D1: 位置 | E1: 1 | F1: 2 | G1: 3 | H1: 4 | I1: 5 | J1: 6
A2: 1 | B2: =VLOOKUP($A2,ArenaRobotConfig!$B:$G,6,TRUE) -> 20 | C2: =VLOOKUP($A2,ArenaRobotConfig!$B:$G,3,TRUE) -> 9 | D2: 星级 | E2: 4 | F2: 3 | G2: 3 | H2: 3 | I2: 3 | J2: 3 | L2: 10064 | M2: 10048 | N2: 10053 | O2: 10050 | P2: 10054 | Q2: 10052 | S2: =L2&"#"&M2&"#"&N2&"#"&O2&"#"&P2&"#"&Q2 -> 10064#10048#10053#10050#10054#10052
A3: 2 | B3: =VLOOKUP($A3,ArenaRobotConfig!$B:$G,6,TRUE) -> 18 | C3: =VLOOKUP($A3,ArenaRobotConfig!$B:$G,3,TRUE) -> 9 | E3: 3 | F3: 3 | G3: 3 | H3: 3 | I3: 4 | J3: 3 | L3: 10047 | M3: 10048 | N3: 10053 | O3: 10050 | P3: 10059 | Q3: 10052 | S3: =L3&"#"&M3&"#"&N3&"#"&O3&"#"&P3&"#"&Q3 -> 10047#10048#10053#10050#10059#10052
A4: 3 | B4: =VLOOKUP($A4,ArenaRobotConfig!$B:$G,6,TRUE) -> 22 | C4: =VLOOKUP($A4,ArenaRobotConfig!$B:$G,3,TRUE) -> 8 | E4: 3 | F4: 3 | G4: 3 | H4: 3 | I4: 3 | J4: 3 | L4: 10047 | M4: 10048 | N4: 10049 | O4: 10050 | P4: 10051 | Q4: 10052 | S4: 10047#10048#10049#10050#10051#10052
A5: 4 | B5: =VLOOKUP($A5,ArenaRobotConfig!$B:$G,6,TRUE) -> 18 | C5: =VLOOKUP($A5,ArenaRobotConfig!$B:$G,3,TRUE) -> 8 | E5: 3 | F5: 3 | G5: 3 | H5: 3 | I5: 3 | J5: 3 | L5: 10047 | M5: 10048 | N5: 10049 | O5: 10050 | P5: 10051 | Q5: 10052 | S5: 10047#10048#10049#10050#10051#10052
A6: 5 | B6: =VLOOKUP($A6,ArenaRobotConfig!$B:$G,6,TRUE) -> 21 | C6: =VLOOKUP($A6,ArenaRobotConfig!$B:$G,3,TRUE) -> 10 | E6: 4 | F6: 3 | G6: 4 | H6: 3 | I6: 3 | J6: 3 | L6: 10064 | M6: 10048 | N6: 10070 | O6: 10050 | P6: 10054 | Q6: 10052 | S6: 10064#10048#10070#10050#10054#10052
A7: 6 | B7: =VLOOKUP($A7,ArenaRobotConfig!$B:$G,6,TRUE) -> 21 | C7: =VLOOKUP($A7,ArenaRobotConfig!$B:$G,3,TRUE) -> 10 | E7: 3 | F7: 3 | G7: 3 | H7: 3 | I7: 3 | J7: 3 | L7: 10047 | M7: 10048 | N7: 10053 | O7: 10050 | P7: 10051 | Q7: 10052 | S7: 10047#10048#10053#10050#10051#10052
A8: 7 | B8: =VLOOKUP($A8,ArenaRobotConfig!$B:$G,6,TRUE) -> 19 | C8: =VLOOKUP($A8,ArenaRobotConfig!$B:$G,3,TRUE) -> 10 | E8: 3 | F8: 3 | G8: 3 | H8: 3 | I8: 3 | J8: 3 | L8: 10047 | M8: 10048 | N8: 10049 | O8: 10050 | P8: 10054 | Q8: 10052 | S8: 10047#10048#10049#10050#10054#10052
A9: 8 | B9: =VLOOKUP($A9,ArenaRobotConfig!$B:$G,6,TRUE) -> 22 | C9: =VLOOKUP($A9,ArenaRobotConfig!$B:$G,3,TRUE) -> 9 | E9: 3 | F9: 4 | G9: 3 | H9: 3 | I9: 3 | J9: 3 | L9: 10047 | M9: 10061 | N9: 10053 | O9: 10050 | P9: 10054 | Q9: 10052 | S9: 10047#10061#10053#10050#10054#10052
A10: 9 | B10: =VLOOKUP($A10,ArenaRobotConfig!$B:$G,6,TRUE) -> 19 | C10: =VLOOKUP($A10,ArenaRobotConfig!$B:$G,3,TRUE) -> 8 | E10: 3 | F10: 3 | G10: 3 | H10: 3 | I10: 3 | J10: 3 | L10: 10047 | M10: 10048 | N10: 10049 | O10: 10050 | P10: 10054 | Q10: 10052 | S10: 10047#10048#10049#10050#10054#10052
A11: 10 | B11: =VLOOKUP($A11,ArenaRobotConfig!$B:$G,6,TRUE) -> 20 | C11: =VLOOKUP($A11,ArenaRobotConfig!$B:$G,3,TRUE) -> 9 | E11: 3 | F11: 3 | G11: 3 | H11: 4 | I11: 3 | J11: 3 | L11: 10047 | M11: 10048 | N11: 10053 | O11: 10066 | P11: 10051 | Q11: 10052 | S11: 10047#10048#10053#10066#10051#10052
A12: 11 | B12: =VLOOKUP($A12,ArenaRobotConfig!$B:$G,6,TRUE) -> 22 | C12: =VLOOKUP($A12,ArenaRobotConfig!$B:$G,3,TRUE) -> 10 | E12: 3 | F12: 3 | G12: 4 | H12: 3 | I12: 4 | J12: 3 | L12: 10047 | M12: 10048 | N12: 10072 | O12: 10050 | P12: 10069 | Q12: 10052 | S12: 10047#10048#10072#10050#10069#10052
A13: 12 | B13: =VLOOKUP($A13,ArenaRobotConfig!$B:$G,6,TRUE) -> 22 | C13: =VLOOKUP($A13,ArenaRobotConfig!$B:$G,3,TRUE) -> 9 | E13: 3 | F13: 4 | G13: 3 | H13: 3 | I13: 3 | J13: 3 | L13: 10047 | M13: 10061 | N13: 10053 | O13: 10050 | P13: 10054 | Q13: 10052 | S13: 10047#10061#10053#10050#10054#10052
A14: 13 | B14: =VLOOKUP($A14,ArenaRobotConfig!$B:$G,6,TRUE) -> 18 | C14: =VLOOKUP($A14,ArenaRobotConfig!$B:$G,3,TRUE) -> 8 | E14: 3 | F14: 3 | G14: 3 | H14: 3 | I14: 3 | J14: 3 | L14: 10047 | M14: 10048 | N14: 10049 | O14: 10050 | P14: 10054 | Q14: 10052 | S14: 10047#10048#10049#10050#10054#10052
A15: 14 | B15: =VLOOKUP($A15,ArenaRobotConfig!$B:$G,6,TRUE) -> 21 | C15: =VLOOKUP($A15,ArenaRobotConfig!$B:$G,3,TRUE) -> 10 | E15: 3 | F15: 4 | G15: 3 | H15: 3 | I15: 3 | J15: 4 | L15: 10047 | M15: 10057 | N15: 10053 | O15: 10050 | P15: 10054 | Q15: 10060 | S15: 10047#10057#10053#10050#10054#10060
A16: 15 | B16: =VLOOKUP($A16,ArenaRobotConfig!$B:$G,6,TRUE) -> 21 | C16: =VLOOKUP($A16,ArenaRobotConfig!$B:$G,3,TRUE) -> 10 | E16: 3 | F16: 3 | G16: 4 | H16: 3 | I16: 4 | J16: 3 | L16: 10047 | M16: 10048 | N16: 10072 | O16: 10050 | P16: 10058 | Q16: 10052 | S16: 10047#10048#10072#10050#10058#10052
A17: 16 | B17: =VLOOKUP($A17,ArenaRobotConfig!$B:$G,6,TRUE) -> 37 | C17: =VLOOKUP($A17,ArenaRobotConfig!$B:$G,3,TRUE) -> 13 | E17: 3 | F17: 4 | G17: 3 | H17: 4 | I17: 3 | J17: 4 | L17: 10047 | M17: 10057 | N17: 10053 | O17: 10066 | P17: 10054 | Q17: 10065 | S17: 10047#10057#10053#10066#10054#10065
A18: 17 | B18: =VLOOKUP($A18,ArenaRobotConfig!$B:$G,6,TRUE) -> 35 | C18: =VLOOKUP($A18,ArenaRobotConfig!$B:$G,3,TRUE) -> 15 | E18: 3 | F18: 3 | G18: 3 | H18: 4 | I18: 4 | J18: 4 | L18: 10047 | M18: 10048 | N18: 10049 | O18: 10068 | P18: 10069 | Q18: 10065 | S18: 10047#10048#10049#10068#10069#10065
A19: 18 | B19: =VLOOKUP($A19,ArenaRobotConfig!$B:$G,6,TRUE) -> 34 | C19: =VLOOKUP($A19,ArenaRobotConfig!$B:$G,3,TRUE) -> 15 | E19: 3 | F19: 3 | G19: 3 | H19: 3 | I19: 4 | J19: 3 | L19: 10047 | M19: 10048 | N19: 10053 | O19: 10050 | P19: 10069 | Q19: 10052 | S19: 10047#10048#10053#10050#10069#10052
A20: 19 | B20: =VLOOKUP($A20,ArenaRobotConfig!$B:$G,6,TRUE) -> 33 | C20: =VLOOKUP($A20,ArenaRobotConfig!$B:$G,3,TRUE) -> 14 | E20: 3 | F20: 3 | G20: 4 | H20: 4 | I20: 4 | J20: 3 | L20: 10047 | M20: 10048 | N20: 10072 | O20: 10067 | P20: 10069 | Q20: 10052 | S20: 10047#10048#10072#10067#10069#10052
A21: 20 | B21: =VLOOKUP($A21,ArenaRobotConfig!$B:$G,6,TRUE) -> 37 | C21: =VLOOKUP($A21,ArenaRobotConfig!$B:$G,3,TRUE) -> 13 | E21: 3 | F21: 4 | G21: 3 | H21: 4 | I21: 4 | J21: 3 | L21: 10047 | M21: 10057 | N21: 10049 | O21: 10068 | P21: 10069 | Q21: 10052 | S21: 10047#10057#10049#10068#10069#10052
A22: 21 | B22: =VLOOKUP($A22,ArenaRobotConfig!$B:$G,6,TRUE) -> 34 | C22: =VLOOKUP($A22,ArenaRobotConfig!$B:$G,3,TRUE) -> 15 | E22: 4 | F22: 4 | G22: 4 | H22: 3 | I22: 3 | J22: 3 | L22: 10062 | M22: 10061 | N22: 10070 | O22: 10050 | P22: 10051 | Q22: 10052 | S22: 10062#10061#10070#10050#10051#10052
A23: 22 | B23: =VLOOKUP($A23,ArenaRobotConfig!$B:$G,6,TRUE) -> 36 | C23: =VLOOKUP($A23,ArenaRobotConfig!$B:$G,3,TRUE) -> 12 | E23: 3 | F23: 4 | G23: 3 | H23: 3 | I23: 4 | J23: 4 | L23: 10047 | M23: 10061 | N23: 10049 | O23: 10050 | P23: 10069 | Q23: 10060 | S23: 10047#10061#10049#10050#10069#10060
A24: 23 | B24: =VLOOKUP($A24,ArenaRobotConfig!$B:$G,6,TRUE) -> 30 | C24: =VLOOKUP($A24,ArenaRobotConfig!$B:$G,3,TRUE) -> 15 | E24: 4 | F24: 4 | G24: 3 | H24: 3 | I24: 4 | J24: 3 | L24: 10064 | M24: 10061 | N24: 10053 | O24: 10050 | P24: 10059 | Q24: 10052 | S24: 10064#10061#10053#10050#10059#10052
A25: 24 | B25: =VLOOKUP($A25,ArenaRobotConfig!$B:$G,6,TRUE) -> 30 | C25: =VLOOKUP($A25,ArenaRobotConfig!$B:$G,3,TRUE) -> 13 | E25: 3 | F25: 3 | G25: 4 | H25: 4 | I25: 3 | J25: 4 | L25: 10047 | M25: 10048 | N25: 10071 | O25: 10066 | P25: 10054 | Q25: 10065 | S25: 10047#10048#10071#10066#10054#10065
A26: 25 | B26: =VLOOKUP($A26,ArenaRobotConfig!$B:$G,6,TRUE) -> 37 | C26: =VLOOKUP($A26,ArenaRobotConfig!$B:$G,3,TRUE) -> 14 | E26: 3 | F26: 4 | G26: 3 | H26: 4 | I26: 3 | J26: 4 | L26: 10047 | M26: 10061 | N26: 10049 | O26: 10068 | P26: 10054 | Q26: 10060 | S26: 10047#10061#10049#10068#10054#10060
A27: 26 | B27: =VLOOKUP($A27,ArenaRobotConfig!$B:$G,6,TRUE) -> 30 | C27: =VLOOKUP($A27,ArenaRobotConfig!$B:$G,3,TRUE) -> 14 | E27: 4 | F27: 3 | G27: 4 | H27: 3 | I27: 4 | J27: 3 | L27: 10064 | M27: 10048 | N27: 10071 | O27: 10050 | P27: 10058 | Q27: 10052 | S27: 10064#10048#10071#10050#10058#10052
A28: 27 | B28: =VLOOKUP($A28,ArenaRobotConfig!$B:$G,6,TRUE) -> 36 | C28: =VLOOKUP($A28,ArenaRobotConfig!$B:$G,3,TRUE) -> 15 | E28: 3 | F28: 4 | G28: 3 | H28: 4 | I28: 4 | J28: 3 | L28: 10047 | M28: 10061 | N28: 10049 | O28: 10068 | P28: 10058 | Q28: 10052 | S28: 10047#10061#10049#10068#10058#10052
A29: 28 | B29: =VLOOKUP($A29,ArenaRobotConfig!$B:$G,6,TRUE) -> 30 | C29: =VLOOKUP($A29,ArenaRobotConfig!$B:$G,3,TRUE) -> 12 | E29: 3 | F29: 3 | G29: 4 | H29: 4 | I29: 4 | J29: 3 | L29: 10047 | M29: 10048 | N29: 10071 | O29: 10067 | P29: 10058 | Q29: 10052 | S29: 10047#10048#10071#10067#10058#10052
A30: 29 | B30: =VLOOKUP($A30,ArenaRobotConfig!$B:$G,6,TRUE) -> 31 | C30: =VLOOKUP($A30,ArenaRobotConfig!$B:$G,3,TRUE) -> 12 | E30: 3 | F30: 4 | G30: 3 | H30: 4 | I30: 3 | J30: 4 | L30: 10047 | M30: 10057 | N30: 10049 | O30: 10067 | P30: 10054 | Q30: 10060 | S30: 10047#10057#10049#10067#10054#10060
A31: 30 | B31: =VLOOKUP($A31,ArenaRobotConfig!$B:$G,6,TRUE) -> 36 | C31: =VLOOKUP($A31,ArenaRobotConfig!$B:$G,3,TRUE) -> 14 | E31: 3 | F31: 4 | G31: 4 | H31: 3 | I31: 4 | J31: 3 | L31: 10047 | M31: 10057 | N31: 10072 | O31: 10050 | P31: 10059 | Q31: 10052 | S31: 10047#10057#10072#10050#10059#10052
A32: 31 | B32: =VLOOKUP($A32,ArenaRobotConfig!$B:$G,6,TRUE) -> 33 | C32: =VLOOKUP($A32,ArenaRobotConfig!$B:$G,3,TRUE) -> 12 | E32: 3 | F32: 4 | G32: 4 | H32: 4 | I32: 3 | J32: 3 | L32: 10047 | M32: 10057 | N32: 10072 | O32: 10066 | P32: 10054 | Q32: 10052 | S32: 10047#10057#10072#10066#10054#10052
A33: 32 | B33: =VLOOKUP($A33,ArenaRobotConfig!$B:$G,6,TRUE) -> 30 | C33: =VLOOKUP($A33,ArenaRobotConfig!$B:$G,3,TRUE) -> 13 | E33: 3 | F33: 3 | G33: 4 | H33: 4 | I33: 4 | J33: 3 | L33: 10047 | M33: 10048 | N33: 10072 | O33: 10066 | P33: 10069 | Q33: 10052 | S33: 10047#10048#10072#10066#10069#10052
A34: 33 | B34: =VLOOKUP($A34,ArenaRobotConfig!$B:$G,6,TRUE) -> 35 | C34: =VLOOKUP($A34,ArenaRobotConfig!$B:$G,3,TRUE) -> 14 | E34: 3 | F34: 4 | G34: 4 | H34: 3 | I34: 3 | J34: 4 | L34: 10047 | M34: 10061 | N34: 10070 | O34: 10050 | P34: 10054 | Q34: 10060 | S34: 10047#10061#10070#10050#10054#10060
A35: 34 | B35: =VLOOKUP($A35,ArenaRobotConfig!$B:$G,6,TRUE) -> 33 | C35: =VLOOKUP($A35,ArenaRobotConfig!$B:$G,3,TRUE) -> 12 | E35: 3 | F35: 4 | G35: 3 | H35: 4 | I35: 4 | J35: 3 | L35: 10047 | M35: 10061 | N35: 10049 | O35: 10067 | P35: 10069 | Q35: 10052 | S35: 10047#10061#10049#10067#10069#10052
A36: 35 | B36: =VLOOKUP($A36,ArenaRobotConfig!$B:$G,6,TRUE) -> 31 | C36: =VLOOKUP($A36,ArenaRobotConfig!$B:$G,3,TRUE) -> 12 | E36: 3 | F36: 3 | G36: 4 | H36: 4 | I36: 4 | J36: 3 | L36: 10047 | M36: 10048 | N36: 10070 | O36: 10066 | P36: 10069 | Q36: 10052 | S36: 10047#10048#10070#10066#10069#10052
A37: 36 | B37: =VLOOKUP($A37,ArenaRobotConfig!$B:$G,6,TRUE) -> 37 | C37: =VLOOKUP($A37,ArenaRobotConfig!$B:$G,3,TRUE) -> 15 | E37: 4 | F37: 3 | G37: 3 | H37: 3 | I37: 4 | J37: 4 | L37: 10062 | M37: 10048 | N37: 10053 | O37: 10050 | P37: 10058 | Q37: 10060 | S37: 10062#10048#10053#10050#10058#10060
A38: 37 | B38: =VLOOKUP($A38,ArenaRobotConfig!$B:$G,6,TRUE) -> 36 | C38: =VLOOKUP($A38,ArenaRobotConfig!$B:$G,3,TRUE) -> 13 | E38: 4 | F38: 3 | G38: 3 | H38: 4 | I38: 4 | J38: 3 | L38: 10062 | M38: 10048 | N38: 10049 | O38: 10066 | P38: 10058 | Q38: 10052 | S38: 10062#10048#10049#10066#10058#10052
A39: 38 | B39: =VLOOKUP($A39,ArenaRobotConfig!$B:$G,6,TRUE) -> 34 | C39: =VLOOKUP($A39,ArenaRobotConfig!$B:$G,3,TRUE) -> 15 | E39: 4 | F39: 4 | G39: 3 | H39: 3 | I39: 3 | J39: 4 | L39: 10062 | M39: 10061 | N39: 10049 | O39: 10050 | P39: 10054 | Q39: 10060 | S39: 10062#10061#10049#10050#10054#10060
A40: 39 | B40: =VLOOKUP($A40,ArenaRobotConfig!$B:$G,6,TRUE) -> 35 | C40: =VLOOKUP($A40,ArenaRobotConfig!$B:$G,3,TRUE) -> 14 | E40: 3 | F40: 4 | G40: 4 | H40: 3 | I40: 3 | J40: 4 | L40: 10047 | M40: 10061 | N40: 10070 | O40: 10050 | P40: 10054 | Q40: 10065 | S40: 10047#10061#10070#10050#10054#10065
A41: 40 | B41: =VLOOKUP($A41,ArenaRobotConfig!$B:$G,6,TRUE) -> 32 | C41: =VLOOKUP($A41,ArenaRobotConfig!$B:$G,3,TRUE) -> 14 | E41: 3 | F41: 3 | G41: 4 | H41: 4 | I41: 3 | J41: 4 | L41: 10047 | M41: 10048 | N41: 10071 | O41: 10066 | P41: 10051 | Q41: 10065 | S41: 10047#10048#10071#10066#10051#10065
A42: 41 | B42: =VLOOKUP($A42,ArenaRobotConfig!$B:$G,6,TRUE) -> 37 | C42: =VLOOKUP($A42,ArenaRobotConfig!$B:$G,3,TRUE) -> 13 | E42: 4 | F42: 3 | G42: 3 | H42: 4 | I42: 3 | J42: 4 | L42: 10064 | M42: 10048 | N42: 10053 | O42: 10068 | P42: 10051 | Q42: 10060 | S42: 10064#10048#10053#10068#10051#10060
A43: 42 | B43: =VLOOKUP($A43,ArenaRobotConfig!$B:$G,6,TRUE) -> 34 | C43: =VLOOKUP($A43,ArenaRobotConfig!$B:$G,3,TRUE) -> 13 | E43: 3 | F43: 3 | G43: 3 | H43: 4 | I43: 4 | J43: 4 | L43: 10047 | M43: 10048 | N43: 10053 | O43: 10067 | P43: 10069 | Q43: 10063 | S43: 10047#10048#10053#10067#10069#10063
A44: 43 | B44: =VLOOKUP($A44,ArenaRobotConfig!$B:$G,6,TRUE) -> 33 | C44: =VLOOKUP($A44,ArenaRobotConfig!$B:$G,3,TRUE) -> 12 | E44: 3 | F44: 3 | G44: 4 | H44: 4 | I44: 3 | J44: 4 | L44: 10047 | M44: 10048 | N44: 10070 | O44: 10067 | P44: 10054 | Q44: 10063 | S44: 10047#10048#10070#10067#10054#10063
A45: 44 | B45: =VLOOKUP($A45,ArenaRobotConfig!$B:$G,6,TRUE) -> 30 | C45: =VLOOKUP($A45,ArenaRobotConfig!$B:$G,3,TRUE) -> 14 | E45: 3 | F45: 3 | G45: 4 | H45: 4 | I45: 4 | J45: 3 | L45: 10047 | M45: 10048 | N45: 10070 | O45: 10068 | P45: 10059 | Q45: 10052 | S45: 10047#10048#10070#10068#10059#10052
A46: 45 | B46: =VLOOKUP($A46,ArenaRobotConfig!$B:$G,6,TRUE) -> 37 | C46: =VLOOKUP($A46,ArenaRobotConfig!$B:$G,3,TRUE) -> 14 | E46: 4 | F46: 3 | G46: 3 | H46: 3 | I46: 4 | J46: 4 | L46: 10062 | M46: 10048 | N46: 10049 | O46: 10050 | P46: 10058 | Q46: 10065 | S46: 10062#10048#10049#10050#10058#10065
A47: 46 | B47: =VLOOKUP($A47,ArenaRobotConfig!$B:$G,6,TRUE) -> 45 | C47: =VLOOKUP($A47,ArenaRobotConfig!$B:$G,3,TRUE) -> 22 | E47: 4 | F47: 5 | G47: 4 | H47: 4 | I47: 5 | J47: 4 | L47: 10062 | M47: 10007 | N47: 10071 | O47: 10066 | P47: 10040 | Q47: 10065 | S47: 10062#10007#10071#10066#10040#10065
A48: 47 | B48: =VLOOKUP($A48,ArenaRobotConfig!$B:$G,6,TRUE) -> 49 | C48: =VLOOKUP($A48,ArenaRobotConfig!$B:$G,3,TRUE) -> 20 | E48: 4 | F48: 4 | G48: 5 | H48: 4 | I48: 5 | J48: 4 | L48: 10064 | M48: 10061 | N48: 10038 | O48: 10066 | P48: 10030 | Q48: 10063 | S48: 10064#10061#10038#10066#10030#10063
A49: 48 | B49: =VLOOKUP($A49,ArenaRobotConfig!$B:$G,6,TRUE) -> 49 | C49: =VLOOKUP($A49,ArenaRobotConfig!$B:$G,3,TRUE) -> 21 | E49: 4 | F49: 4 | G49: 5 | H49: 5 | I49: 4 | J49: 4 | L49: 10062 | M49: 10061 | N49: 10042 | O49: 10023 | P49: 10059 | Q49: 10065 | S49: 10062#10061#10042#10023#10059#10065
A50: 49 | B50: =VLOOKUP($A50,ArenaRobotConfig!$B:$G,6,TRUE) -> 49 | C50: =VLOOKUP($A50,ArenaRobotConfig!$B:$G,3,TRUE) -> 25 | E50: 4 | F50: 4 | G50: 4 | H50: 5 | I50: 4 | J50: 5 | L50: 10064 | M50: 10057 | N50: 10071 | O50: 10029 | P50: 10058 | Q50: 10032 | S50: 10064#10057#10071#10029#10058#10032
A51: 50 | B51: =VLOOKUP($A51,ArenaRobotConfig!$B:$G,6,TRUE) -> 48 | C51: =VLOOKUP($A51,ArenaRobotConfig!$B:$G,3,TRUE) -> 23 | E51: 4 | F51: 5 | G51: 4 | H51: 4 | I51: 5 | J51: 4 | L51: 10064 | M51: 10005 | N51: 10072 | O51: 10067 | P51: 10040 | Q51: 10063 | S51: 10064#10005#10072#10067#10040#10063
A52: 51 | B52: =VLOOKUP($A52,ArenaRobotConfig!$B:$G,6,TRUE) -> 45 | C52: =VLOOKUP($A52,ArenaRobotConfig!$B:$G,3,TRUE) -> 23 | E52: 5 | F52: 4 | G52: 5 | H52: 4 | I52: 4 | J52: 4 | L52: 10003 | M52: 10061 | N52: 10016 | O52: 10066 | P52: 10058 | Q52: 10063 | S52: 10003#10061#10016#10066#10058#10063
A53: 52 | B53: =VLOOKUP($A53,ArenaRobotConfig!$B:$G,6,TRUE) -> 42 | C53: =VLOOKUP($A53,ArenaRobotConfig!$B:$G,3,TRUE) -> 24 | E53: 4 | F53: 4 | G53: 4 | H53: 4 | I53: 5 | J53: 5 | L53: 10064 | M53: 10057 | N53: 10070 | O53: 10066 | P53: 10013 | Q53: 10090 | S53: 10064#10057#10070#10066#10013#10090
A54: 53 | B54: =VLOOKUP($A54,ArenaRobotConfig!$B:$G,6,TRUE) -> 47 | C54: =VLOOKUP($A54,ArenaRobotConfig!$B:$G,3,TRUE) -> 25 | E54: 5 | F54: 4 | G54: 4 | H54: 5 | I54: 4 | J54: 4 | L54: 10018 | M54: 10061 | N54: 10070 | O54: 10012 | P54: 10058 | Q54: 10065 | S54: 10018#10061#10070#10012#10058#10065
A55: 54 | B55: =VLOOKUP($A55,ArenaRobotConfig!$B:$G,6,TRUE) -> 50 | C55: =VLOOKUP($A55,ArenaRobotConfig!$B:$G,3,TRUE) -> 25 | E55: 4 | F55: 4 | G55: 5 | H55: 4 | I55: 4 | J55: 5 | L55: 10062 | M55: 10057 | N55: 10042 | O55: 10067 | P55: 10069 | Q55: 10046 | S55: 10062#10057#10042#10067#10069#10046
A56: 55 | B56: =VLOOKUP($A56,ArenaRobotConfig!$B:$G,6,TRUE) -> 47 | C56: =VLOOKUP($A56,ArenaRobotConfig!$B:$G,3,TRUE) -> 21 | E56: 4 | F56: 4 | G56: 4 | H56: 5 | I56: 5 | J56: 4 | L56: 10062 | M56: 10057 | N56: 10071 | O56: 10043 | P56: 10045 | Q56: 10063 | S56: 10062#10057#10071#10043#10045#10063
A57: 56 | B57: =VLOOKUP($A57,ArenaRobotConfig!$B:$G,6,TRUE) -> 42 | C57: =VLOOKUP($A57,ArenaRobotConfig!$B:$G,3,TRUE) -> 21 | E57: 4 | F57: 5 | G57: 4 | H57: 5 | I57: 4 | J57: 4 | L57: 10062 | M57: 10002 | N57: 10071 | O57: 10028 | P57: 10059 | Q57: 10065 | S57: 10062#10002#10071#10028#10059#10065
A58: 57 | B58: =VLOOKUP($A58,ArenaRobotConfig!$B:$G,6,TRUE) -> 44 | C58: =VLOOKUP($A58,ArenaRobotConfig!$B:$G,3,TRUE) -> 25 | E58: 4 | F58: 4 | G58: 5 | H58: 4 | I58: 4 | J58: 5 | L58: 10064 | M58: 10057 | N58: 10008 | O58: 10068 | P58: 10058 | Q58: 10032 | S58: 10064#10057#10008#10068#10058#10032
A59: 58 | B59: =VLOOKUP($A59,ArenaRobotConfig!$B:$G,6,TRUE) -> 43 | C59: =VLOOKUP($A59,ArenaRobotConfig!$B:$G,3,TRUE) -> 24 | E59: 5 | F59: 4 | G59: 4 | H59: 5 | I59: 4 | J59: 4 | L59: 10019 | M59: 10057 | N59: 10071 | O59: 10009 | P59: 10059 | Q59: 10063 | S59: 10019#10057#10071#10009#10059#10063
A60: 59 | B60: =VLOOKUP($A60,ArenaRobotConfig!$B:$G,6,TRUE) -> 48 | C60: =VLOOKUP($A60,ArenaRobotConfig!$B:$G,3,TRUE) -> 21 | E60: 4 | F60: 4 | G60: 5 | H60: 4 | I60: 4 | J60: 5 | L60: 10062 | M60: 10061 | N60: 10038 | O60: 10068 | P60: 10069 | Q60: 10026 | S60: 10062#10061#10038#10068#10069#10026
A61: 60 | B61: =VLOOKUP($A61,ArenaRobotConfig!$B:$G,6,TRUE) -> 44 | C61: =VLOOKUP($A61,ArenaRobotConfig!$B:$G,3,TRUE) -> 25 | E61: 5 | F61: 4 | G61: 4 | H61: 5 | I61: 4 | J61: 4 | L61: 10019 | M61: 10057 | N61: 10071 | O61: 10029 | P61: 10059 | Q61: 10065 | S61: 10019#10057#10071#10029#10059#10065
A62: 61 | B62: =VLOOKUP($A62,ArenaRobotConfig!$B:$G,6,TRUE) -> 49 | C62: =VLOOKUP($A62,ArenaRobotConfig!$B:$G,3,TRUE) -> 20 | E62: 4 | F62: 5 | G62: 4 | H62: 4 | I62: 5 | J62: 4 | L62: 10062 | M62: 10010 | N62: 10070 | O62: 10067 | P62: 10031 | Q62: 10060 | S62: 10062#10010#10070#10067#10031#10060
A63: 62 | B63: =VLOOKUP($A63,ArenaRobotConfig!$B:$G,6,TRUE) -> 49 | C63: =VLOOKUP($A63,ArenaRobotConfig!$B:$G,3,TRUE) -> 25 | E63: 4 | F63: 4 | G63: 5 | H63: 4 | I63: 4 | J63: 5 | L63: 10064 | M63: 10057 | N63: 10004 | O63: 10067 | P63: 10059 | Q63: 10090 | S63: 10064#10057#10004#10067#10059#10090
A64: 63 | B64: =VLOOKUP($A64,ArenaRobotConfig!$B:$G,6,TRUE) -> 44 | C64: =VLOOKUP($A64,ArenaRobotConfig!$B:$G,3,TRUE) -> 20 | E64: 4 | F64: 4 | G64: 4 | H64: 4 | I64: 5 | J64: 5 | L64: 10064 | M64: 10057 | N64: 10070 | O64: 10068 | P64: 10089 | Q64: 10014 | S64: 10064#10057#10070#10068#10089#10014
A65: 64 | B65: =VLOOKUP($A65,ArenaRobotConfig!$B:$G,6,TRUE) -> 47 | C65: =VLOOKUP($A65,ArenaRobotConfig!$B:$G,3,TRUE) -> 25 | E65: 5 | F65: 4 | G65: 4 | H65: 4 | I65: 4 | J65: 5 | L65: 10018 | M65: 10057 | N65: 10070 | O65: 10068 | P65: 10069 | Q65: 10014 | S65: 10018#10057#10070#10068#10069#10014
A66: 65 | B66: =VLOOKUP($A66,ArenaRobotConfig!$B:$G,6,TRUE) -> 48 | C66: =VLOOKUP($A66,ArenaRobotConfig!$B:$G,3,TRUE) -> 21 | E66: 4 | F66: 5 | G66: 5 | H66: 4 | I66: 4 | J66: 4 | L66: 10062 | M66: 10087 | N66: 10004 | O66: 10066 | P66: 10058 | Q66: 10063 | S66: 10062#10087#10004#10066#10058#10063
A67: 66 | B67: =VLOOKUP($A67,ArenaRobotConfig!$B:$G,6,TRUE) -> 51 | C67: =VLOOKUP($A67,ArenaRobotConfig!$B:$G,3,TRUE) -> 22 | E67: 5 | F67: 5 | G67: 4 | H67: 4 | I67: 4 | J67: 4 | L67: 10019 | M67: 10005 | N67: 10071 | O67: 10068 | P67: 10069 | Q67: 10060 | S67: =L67&"#"&M67&"#"&N67&"#"&O67&"#"&P67&"#"&Q67 -> 10019#10005#10071#10068#10069#10060
A68: 67 | B68: =VLOOKUP($A68,ArenaRobotConfig!$B:$G,6,TRUE) -> 48 | C68: =VLOOKUP($A68,ArenaRobotConfig!$B:$G,3,TRUE) -> 23 | E68: 4 | F68: 4 | G68: 5 | H68: 4 | I68: 4 | J68: 5 | L68: 10062 | M68: 10057 | N68: 10004 | O68: 10067 | P68: 10058 | Q68: 10090 | S68: 10062#10057#10004#10067#10058#10090
A69: 68 | B69: =VLOOKUP($A69,ArenaRobotConfig!$B:$G,6,TRUE) -> 51 | C69: =VLOOKUP($A69,ArenaRobotConfig!$B:$G,3,TRUE) -> 23 | E69: 5 | F69: 4 | G69: 4 | H69: 4 | I69: 4 | J69: 5 | L69: 10036 | M69: 10057 | N69: 10072 | O69: 10068 | P69: 10059 | Q69: 10033 | S69: 10036#10057#10072#10068#10059#10033
A70: 69 | B70: =VLOOKUP($A70,ArenaRobotConfig!$B:$G,6,TRUE) -> 49 | C70: =VLOOKUP($A70,ArenaRobotConfig!$B:$G,3,TRUE) -> 23 | E70: 4 | F70: 5 | G70: 4 | H70: 5 | I70: 4 | J70: 4 | L70: 10062 | M70: 10007 | N70: 10070 | O70: 10022 | P70: 10059 | Q70: 10060 | S70: 10062#10007#10070#10022#10059#10060
A71: 70 | B71: =VLOOKUP($A71,ArenaRobotConfig!$B:$G,6,TRUE) -> 49 | C71: =VLOOKUP($A71,ArenaRobotConfig!$B:$G,3,TRUE) -> 21 | E71: 5 | F71: 4 | G71: 4 | H71: 4 | I71: 5 | J71: 4 | L71: 10018 | M71: 10057 | N71: 10072 | O71: 10066 | P71: 10045 | Q71: 10060 | S71: 10018#10057#10072#10066#10045#10060
A72: 71 | B72: =VLOOKUP($A72,ArenaRobotConfig!$B:$G,6,TRUE) -> 44 | C72: =VLOOKUP($A72,ArenaRobotConfig!$B:$G,3,TRUE) -> 21 | E72: 5 | F72: 4 | G72: 4 | H72: 4 | I72: 4 | J72: 5 | L72: 10006 | M72: 10057 | N72: 10070 | O72: 10067 | P72: 10058 | Q72: 10014 | S72: 10006#10057#10070#10067#10058#10014
A73: 72 | B73: =VLOOKUP($A73,ArenaRobotConfig!$B:$G,6,TRUE) -> 43 | C73: =VLOOKUP($A73,ArenaRobotConfig!$B:$G,3,TRUE) -> 20 | E73: 4 | F73: 4 | G73: 5 | H73: 4 | I73: 4 | J73: 5 | L73: 10062 | M73: 10057 | N73: 10016 | O73: 10066 | P73: 10058 | Q73: 10032 | S73: 10062#10057#10016#10066#10058#10032
A74: 73 | B74: =VLOOKUP($A74,ArenaRobotConfig!$B:$G,6,TRUE) -> 46 | C74: =VLOOKUP($A74,ArenaRobotConfig!$B:$G,3,TRUE) -> 24 | E74: 4 | F74: 4 | G74: 4 | H74: 5 | I74: 5 | J74: 4 | L74: 10062 | M74: 10057 | N74: 10070 | O74: 10009 | P74: 10015 | Q74: 10060 | S74: 10062#10057#10070#10009#10015#10060
A75: 74 | B75: =VLOOKUP($A75,ArenaRobotConfig!$B:$G,6,TRUE) -> 51 | C75: =VLOOKUP($A75,ArenaRobotConfig!$B:$G,3,TRUE) -> 24 | E75: 4 | F75: 4 | G75: 5 | H75: 4 | I75: 4 | J75: 5 | L75: 10064 | M75: 10061 | N75: 10011 | O75: 10068 | P75: 10058 | Q75: 10014 | S75: 10064#10061#10011#10068#10058#10014
A76: 75 | B76: =VLOOKUP($A76,ArenaRobotConfig!$B:$G,6,TRUE) -> 46 | C76: =VLOOKUP($A76,ArenaRobotConfig!$B:$G,3,TRUE) -> 24 | E76: 4 | F76: 5 | G76: 4 | H76: 5 | I76: 4 | J76: 4 | L76: 10064 | M76: 10010 | N76: 10072 | O76: 10012 | P76: 10058 | Q76: 10060 | S76: 10064#10010#10072#10012#10058#10060
A77: 76 | B77: =VLOOKUP($A77,ArenaRobotConfig!$B:$G,6,TRUE) -> 63 | C77: =VLOOKUP($A77,ArenaRobotConfig!$B:$G,3,TRUE) -> 33 | E77: 5 | F77: 5 | G77: 4 | H77: 5 | I77: 5 | J77: 5 | L77: 10044 | M77: 10002 | N77: 10071 | O77: 10029 | P77: 10024 | Q77: 10026 | S77: 10044#10002#10071#10029#10024#10026
A78: 77 | B78: =VLOOKUP($A78,ArenaRobotConfig!$B:$G,6,TRUE) -> 60 | C78: =VLOOKUP($A78,ArenaRobotConfig!$B:$G,3,TRUE) -> 33 | E78: 5 | F78: 5 | G78: 5 | H78: 5 | I78: 4 | J78: 5 | L78: 10034 | M78: 10007 | N78: 10042 | O78: 10088 | P78: 10069 | Q78: 10027 | S78: 10034#10007#10042#10088#10069#10027
A79: 78 | B79: =VLOOKUP($A79,ArenaRobotConfig!$B:$G,6,TRUE) -> 63 | C79: =VLOOKUP($A79,ArenaRobotConfig!$B:$G,3,TRUE) -> 34 | E79: 5 | F79: 5 | G79: 5 | H79: 5 | I79: 5 | J79: 4 | L79: 10019 | M79: 10007 | N79: 10042 | O79: 10009 | P79: 10015 | Q79: 10063 | S79: 10019#10007#10042#10009#10015#10063
A80: 79 | B80: =VLOOKUP($A80,ArenaRobotConfig!$B:$G,6,TRUE) -> 63 | C80: =VLOOKUP($A80,ArenaRobotConfig!$B:$G,3,TRUE) -> 35 | E80: 5 | F80: 5 | G80: 4 | H80: 5 | I80: 5 | J80: 5 | L80: 10018 | M80: 10010 | N80: 10072 | O80: 10039 | P80: 10030 | Q80: 10090 | S80: 10018#10010#10072#10039#10030#10090
A81: 80 | B81: =VLOOKUP($A81,ArenaRobotConfig!$B:$G,6,TRUE) -> 62 | C81: =VLOOKUP($A81,ArenaRobotConfig!$B:$G,3,TRUE) -> 35 | E81: 5 | F81: 5 | G81: 5 | H81: 5 | I81: 5 | J81: 5 | L81: 10019 | M81: 10010 | N81: 10021 | O81: 10012 | P81: 10015 | Q81: 10017 | S81: 10019#10010#10021#10012#10015#10017
A82: 81 | B82: =VLOOKUP($A82,ArenaRobotConfig!$B:$G,6,TRUE) -> 65 | C82: =VLOOKUP($A82,ArenaRobotConfig!$B:$G,3,TRUE) -> 34 | E82: 5 | F82: 5 | G82: 5 | H82: 5 | I82: 4 | J82: 5 | L82: 10001 | M82: 10035 | N82: 10011 | O82: 10088 | P82: 10059 | Q82: 10033 | S82: 10001#10035#10011#10088#10059#10033
A83: 82 | B83: =VLOOKUP($A83,ArenaRobotConfig!$B:$G,6,TRUE) -> 66 | C83: =VLOOKUP($A83,ArenaRobotConfig!$B:$G,3,TRUE) -> 32 | E83: 5 | F83: 5 | G83: 4 | H83: 5 | I83: 5 | J83: 5 | L83: 10019 | M83: 10002 | N83: 10070 | O83: 10028 | P83: 10013 | Q83: 10032 | S83: 10019#10002#10070#10028#10013#10032
A84: 83 | B84: =VLOOKUP($A84,ArenaRobotConfig!$B:$G,6,TRUE) -> 63 | C84: =VLOOKUP($A84,ArenaRobotConfig!$B:$G,3,TRUE) -> 34 | E84: 4 | F84: 5 | G84: 5 | H84: 5 | I84: 5 | J84: 5 | L84: 10062 | M84: 10005 | N84: 10004 | O84: 10023 | P84: 10015 | Q84: 10014 | S84: 10062#10005#10004#10023#10015#10014
A85: 84 | B85: =VLOOKUP($A85,ArenaRobotConfig!$B:$G,6,TRUE) -> 61 | C85: =VLOOKUP($A85,ArenaRobotConfig!$B:$G,3,TRUE) -> 30 | E85: 5 | F85: 5 | G85: 5 | H85: 4 | I85: 5 | J85: 5 | L85: 10018 | M85: 10087 | N85: 10008 | O85: 10067 | P85: 10031 | Q85: 10027 | S85: 10018#10087#10008#10067#10031#10027
A86: 85 | B86: =VLOOKUP($A86,ArenaRobotConfig!$B:$G,6,TRUE) -> 62 | C86: =VLOOKUP($A86,ArenaRobotConfig!$B:$G,3,TRUE) -> 32 | E86: 5 | F86: 5 | G86: 5 | H86: 5 | I86: 4 | J86: 5 | L86: 10018 | M86: 10085 | N86: 10008 | O86: 10028 | P86: 10058 | Q86: 10014 | S86: 10018#10085#10008#10028#10058#10014
A87: 86 | B87: =VLOOKUP($A87,ArenaRobotConfig!$B:$G,6,TRUE) -> 63 | C87: =VLOOKUP($A87,ArenaRobotConfig!$B:$G,3,TRUE) -> 32 | E87: 5 | F87: 5 | G87: 5 | H87: 5 | I87: 5 | J87: 4 | L87: 10044 | M87: 10002 | N87: 10086 | O87: 10022 | P87: 10025 | Q87: 10060 | S87: 10044#10002#10086#10022#10025#10060
A88: 87 | B88: =VLOOKUP($A88,ArenaRobotConfig!$B:$G,6,TRUE) -> 59 | C88: =VLOOKUP($A88,ArenaRobotConfig!$B:$G,3,TRUE) -> 33 | E88: 5 | F88: 4 | G88: 5 | H88: 5 | I88: 5 | J88: 5 | L88: 10018 | M88: 10061 | N88: 10016 | O88: 10009 | P88: 10025 | Q88: 10032 | S88: 10018#10061#10016#10009#10025#10032
A89: 88 | B89: =VLOOKUP($A89,ArenaRobotConfig!$B:$G,6,TRUE) -> 63 | C89: =VLOOKUP($A89,ArenaRobotConfig!$B:$G,3,TRUE) -> 31 | E89: 4 | F89: 5 | G89: 5 | H89: 5 | I89: 5 | J89: 5 | L89: 10062 | M89: 10010 | N89: 10042 | O89: 10028 | P89: 10030 | Q89: 10033 | S89: 10062#10010#10042#10028#10030#10033
A90: 89 | B90: =VLOOKUP($A90,ArenaRobotConfig!$B:$G,6,TRUE) -> 60 | C90: =VLOOKUP($A90,ArenaRobotConfig!$B:$G,3,TRUE) -> 30 | E90: 5 | F90: 5 | G90: 5 | H90: 4 | I90: 5 | J90: 5 | L90: 10001 | M90: 10087 | N90: 10086 | O90: 10067 | P90: 10015 | Q90: 10017 | S90: 10001#10087#10086#10067#10015#10017
A91: 90 | B91: =VLOOKUP($A91,ArenaRobotConfig!$B:$G,6,TRUE) -> 66 | C91: =VLOOKUP($A91,ArenaRobotConfig!$B:$G,3,TRUE) -> 35 | E91: 5 | F91: 5 | G91: 5 | H91: 5 | I91: 5 | J91: 5 | L91: 10003 | M91: 10035 | N91: 10008 | O91: 10022 | P91: 10013 | Q91: 10032 | S91: 10003#10035#10008#10022#10013#10032
A92: 91 | B92: =VLOOKUP($A92,ArenaRobotConfig!$B:$G,6,TRUE) -> 64 | C92: =VLOOKUP($A92,ArenaRobotConfig!$B:$G,3,TRUE) -> 35 | E92: 5 | F92: 5 | G92: 5 | H92: 5 | I92: 5 | J92: 5 | L92: 10003 | M92: 10085 | N92: 10004 | O92: 10029 | P92: 10040 | Q92: 10033 | S92: 10003#10085#10004#10029#10040#10033
A93: 92 | B93: =VLOOKUP($A93,ArenaRobotConfig!$B:$G,6,TRUE) -> 66 | C93: =VLOOKUP($A93,ArenaRobotConfig!$B:$G,3,TRUE) -> 34 | E93: 5 | F93: 5 | G93: 5 | H93: 5 | I93: 5 | J93: 5 | L93: 10044 | M93: 10007 | N93: 10004 | O93: 10039 | P93: 10089 | Q93: 10032 | S93: 10044#10007#10004#10039#10089#10032
A94: 93 | B94: =VLOOKUP($A94,ArenaRobotConfig!$B:$G,6,TRUE) -> 60 | C94: =VLOOKUP($A94,ArenaRobotConfig!$B:$G,3,TRUE) -> 33 | E94: 5 | F94: 5 | G94: 5 | H94: 5 | I94: 5 | J94: 5 | L94: 10006 | M94: 10037 | N94: 10011 | O94: 10039 | P94: 10024 | Q94: 10017 | S94: 10006#10037#10011#10039#10024#10017
A95: 94 | B95: =VLOOKUP($A95,ArenaRobotConfig!$B:$G,6,TRUE) -> 61 | C95: =VLOOKUP($A95,ArenaRobotConfig!$B:$G,3,TRUE) -> 30 | E95: 5 | F95: 5 | G95: 5 | H95: 5 | I95: 5 | J95: 5 | L95: 10001 | M95: 10020 | N95: 10021 | O95: 10039 | P95: 10024 | Q95: 10026 | S95: 10001#10020#10021#10039#10024#10026
A96: 95 | B96: =VLOOKUP($A96,ArenaRobotConfig!$B:$G,6,TRUE) -> 64 | C96: =VLOOKUP($A96,ArenaRobotConfig!$B:$G,3,TRUE) -> 35 | E96: 5 | F96: 5 | G96: 5 | H96: 5 | I96: 5 | J96: 5 | L96: 10044 | M96: 10085 | N96: 10008 | O96: 10028 | P96: 10013 | Q96: 10026 | S96: 10044#10085#10008#10028#10013#10026
A97: 96 | B97: =VLOOKUP($A97,ArenaRobotConfig!$B:$G,6,TRUE) -> 66 | C97: =VLOOKUP($A97,ArenaRobotConfig!$B:$G,3,TRUE) -> 33 | E97: 5 | F97: 5 | G97: 5 | H97: 5 | I97: 5 | J97: 5 | L97: 10034 | M97: 10007 | N97: 10042 | O97: 10009 | P97: 10031 | Q97: 10046 | S97: 10034#10007#10042#10009#10031#10046
A98: 97 | B98: =VLOOKUP($A98,ArenaRobotConfig!$B:$G,6,TRUE) -> 60 | C98: =VLOOKUP($A98,ArenaRobotConfig!$B:$G,3,TRUE) -> 32 | E98: 5 | F98: 5 | G98: 5 | H98: 5 | I98: 5 | J98: 5 | L98: 10019 | M98: 10087 | N98: 10021 | O98: 10009 | P98: 10031 | Q98: 10033 | S98: 10019#10087#10021#10009#10031#10033
A99: 98 | B99: =VLOOKUP($A99,ArenaRobotConfig!$B:$G,6,TRUE) -> 63 | C99: =VLOOKUP($A99,ArenaRobotConfig!$B:$G,3,TRUE) -> 33 | E99: 5 | F99: 5 | G99: 5 | H99: 5 | I99: 5 | J99: 5 | L99: 10001 | M99: 10085 | N99: 10016 | O99: 10039 | P99: 10025 | Q99: 10046 | S99: 10001#10085#10016#10039#10025#10046
A100: 99 | B100: =VLOOKUP($A100,ArenaRobotConfig!$B:$G,6,TRUE) -> 60 | C100: =VLOOKUP($A100,ArenaRobotConfig!$B:$G,3,TRUE) -> 35 | E100: 5 | F100: 5 | G100: 5 | H100: 5 | I100: 5 | J100: 5 | L100: 10036 | M100: 10002 | N100: 10004 | O100: 10009 | P100: 10089 | Q100: 10041 | S100: 10036#10002#10004#10009#10089#10041
A101: 100 | B101: =VLOOKUP($A101,ArenaRobotConfig!$B:$G,6,TRUE) -> 60 | C101: =VLOOKUP($A101,ArenaRobotConfig!$B:$G,3,TRUE) -> 32 | E101: 5 | F101: 5 | G101: 5 | H101: 5 | I101: 5 | J101: 5 | L101: 10034 | M101: 10035 | N101: 10011 | O101: 10028 | P101: 10025 | Q101: 10033 | S101: 10034#10035#10011#10028#10025#10033
A102: 101 | B102: =VLOOKUP($A102,ArenaRobotConfig!$B:$G,6,TRUE) -> 65 | C102: =VLOOKUP($A102,ArenaRobotConfig!$B:$G,3,TRUE) -> 33 | E102: 5 | F102: 5 | G102: 5 | H102: 5 | I102: 5 | J102: 5 | L102: 10003 | M102: 10007 | N102: 10011 | O102: 10028 | P102: 10025 | Q102: 10090 | S102: 10003#10007#10011#10028#10025#10090
A103: 102 | B103: =VLOOKUP($A103,ArenaRobotConfig!$B:$G,6,TRUE) -> 66 | C103: =VLOOKUP($A103,ArenaRobotConfig!$B:$G,3,TRUE) -> 31 | E103: 5 | F103: 5 | G103: 5 | H103: 5 | I103: 5 | J103: 5 | L103: 10003 | M103: 10037 | N103: 10016 | O103: 10022 | P103: 10015 | Q103: 10041 | S103: 10003#10037#10016#10022#10015#10041
A104: 103 | B104: =VLOOKUP($A104,ArenaRobotConfig!$B:$G,6,TRUE) -> 66 | C104: =VLOOKUP($A104,ArenaRobotConfig!$B:$G,3,TRUE) -> 35 | E104: 5 | F104: 5 | G104: 5 | H104: 5 | I104: 5 | J104: 5 | L104: 10003 | M104: 10010 | N104: 10004 | O104: 10088 | P104: 10015 | Q104: 10090 | S104: 10003#10010#10004#10088#10015#10090
A105: 104 | B105: =VLOOKUP($A105,ArenaRobotConfig!$B:$G,6,TRUE) -> 66 | C105: =VLOOKUP($A105,ArenaRobotConfig!$B:$G,3,TRUE) -> 35 | E105: 5 | F105: 5 | G105: 5 | H105: 5 | I105: 5 | J105: 5 | L105: 10019 | M105: 10037 | N105: 10042 | O105: 10022 | P105: 10015 | Q105: 10014 | S105: 10019#10037#10042#10022#10015#10014
A106: 105 | B106: =VLOOKUP($A106,ArenaRobotConfig!$B:$G,6,TRUE) -> 66 | C106: =VLOOKUP($A106,ArenaRobotConfig!$B:$G,3,TRUE) -> 35 | E106: 5 | F106: 5 | G106: 5 | H106: 5 | I106: 5 | J106: 5 | L106: 10003 | M106: 10010 | N106: 10011 | O106: 10009 | P106: 10024 | Q106: 10041 | S106: 10003#10010#10011#10009#10024#10041
A107: 106 | B107: =VLOOKUP($A107,ArenaRobotConfig!$B:$G,6,TRUE) -> 65 | C107: =VLOOKUP($A107,ArenaRobotConfig!$B:$G,3,TRUE) -> 32 | E107: 5 | F107: 5 | G107: 5 | H107: 5 | I107: 5 | J107: 5 | L107: 10001 | M107: 10007 | N107: 10008 | O107: 10009 | P107: 10030 | Q107: 10046 | S107: 10001#10007#10008#10009#10030#10046
A108: 107 | B108: =VLOOKUP($A108,ArenaRobotConfig!$B:$G,6,TRUE) -> 62 | C108: =VLOOKUP($A108,ArenaRobotConfig!$B:$G,3,TRUE) -> 33 | E108: 5 | F108: 5 | G108: 5 | H108: 5 | I108: 5 | J108: 5 | L108: 10034 | M108: 10010 | N108: 10042 | O108: 10028 | P108: 10045 | Q108: 10041 | S108: 10034#10010#10042#10028#10045#10041
A109: 108 | B109: =VLOOKUP($A109,ArenaRobotConfig!$B:$G,6,TRUE) -> 60 | C109: =VLOOKUP($A109,ArenaRobotConfig!$B:$G,3,TRUE) -> 32 | E109: 5 | F109: 5 | G109: 5 | H109: 5 | I109: 5 | J109: 5 | L109: 10019 | M109: 10020 | N109: 10011 | O109: 10012 | P109: 10024 | Q109: 10046 | S109: 10019#10020#10011#10012#10024#10046
A110: 109 | B110: =VLOOKUP($A110,ArenaRobotConfig!$B:$G,6,TRUE) -> 65 | C110: =VLOOKUP($A110,ArenaRobotConfig!$B:$G,3,TRUE) -> 35 | E110: 5 | F110: 5 | G110: 5 | H110: 5 | I110: 5 | J110: 5 | L110: 10003 | M110: 10085 | N110: 10011 | O110: 10022 | P110: 10024 | Q110: 10027 | S110: 10003#10085#10011#10022#10024#10027
A111: 110 | B111: =VLOOKUP($A111,ArenaRobotConfig!$B:$G,6,TRUE) -> 75 | C111: =VLOOKUP($A111,ArenaRobotConfig!$B:$G,3,TRUE) -> 45 | E111: 5 | F111: 5 | G111: 5 | H111: 5 | I111: 5 | J111: 5 | L111: 10044 | M111: 10005 | N111: 10004 | O111: 10023 | P111: 10045 | Q111: 10014 | S111: 10044#10005#10004#10023#10045#10014
A112: 111 | B112: =VLOOKUP($A112,ArenaRobotConfig!$B:$G,6,TRUE) -> 84 | C112: =VLOOKUP($A112,ArenaRobotConfig!$B:$G,3,TRUE) -> 42 | E112: 5 | F112: 5 | G112: 5 | H112: 5 | I112: 5 | J112: 5 | L112: 10018 | M112: 10037 | N112: 10016 | O112: 10088 | P112: 10031 | Q112: 10046 | S112: 10018#10037#10016#10088#10031#10046
A113: 112 | B113: =VLOOKUP($A113,ArenaRobotConfig!$B:$G,6,TRUE) -> 81 | C113: =VLOOKUP($A113,ArenaRobotConfig!$B:$G,3,TRUE) -> 45 | E113: 5 | F113: 5 | G113: 5 | H113: 5 | I113: 5 | J113: 5 | L113: 10006 | M113: 10020 | N113: 10011 | O113: 10023 | P113: 10089 | Q113: 10041 | S113: 10006#10020#10011#10023#10089#10041
A114: 113 | B114: =VLOOKUP($A114,ArenaRobotConfig!$B:$G,6,TRUE) -> 85 | C114: =VLOOKUP($A114,ArenaRobotConfig!$B:$G,3,TRUE) -> 43 | E114: 5 | F114: 5 | G114: 5 | H114: 5 | I114: 5 | J114: 5 | L114: 10003 | M114: 10020 | N114: 10038 | O114: 10023 | P114: 10089 | Q114: 10027 | S114: 10003#10020#10038#10023#10089#10027
A115: 114 | B115: =VLOOKUP($A115,ArenaRobotConfig!$B:$G,6,TRUE) -> 82 | C115: =VLOOKUP($A115,ArenaRobotConfig!$B:$G,3,TRUE) -> 42 | E115: 5 | F115: 5 | G115: 5 | H115: 5 | I115: 5 | J115: 5 | L115: 10003 | M115: 10035 | N115: 10016 | O115: 10029 | P115: 10024 | Q115: 10033 | S115: 10003#10035#10016#10029#10024#10033
A116: 115 | B116: =VLOOKUP($A116,ArenaRobotConfig!$B:$G,6,TRUE) -> 84 | C116: =VLOOKUP($A116,ArenaRobotConfig!$B:$G,3,TRUE) -> 44 | E116: 5 | F116: 5 | G116: 5 | H116: 5 | I116: 5 | J116: 5 | L116: 10036 | M116: 10007 | N116: 10011 | O116: 10023 | P116: 10089 | Q116: 10046 | S116: 10036#10007#10011#10023#10089#10046
A117: 116 | B117: =VLOOKUP($A117,ArenaRobotConfig!$B:$G,6,TRUE) -> 77 | C117: =VLOOKUP($A117,ArenaRobotConfig!$B:$G,3,TRUE) -> 42 | E117: 5 | F117: 5 | G117: 5 | H117: 5 | I117: 5 | J117: 5 | L117: 10003 | M117: 10010 | N117: 10004 | O117: 10012 | P117: 10015 | Q117: 10090 | S117: 10003#10010#10004#10012#10015#10090
A118: 117 | B118: =VLOOKUP($A118,ArenaRobotConfig!$B:$G,6,TRUE) -> 79 | C118: =VLOOKUP($A118,ArenaRobotConfig!$B:$G,3,TRUE) -> 41 | E118: 5 | F118: 5 | G118: 5 | H118: 5 | I118: 5 | J118: 5 | L118: 10006 | M118: 10035 | N118: 10038 | O118: 10022 | P118: 10030 | Q118: 10033 | S118: 10006#10035#10038#10022#10030#10033
A119: 118 | B119: =VLOOKUP($A119,ArenaRobotConfig!$B:$G,6,TRUE) -> 73 | C119: =VLOOKUP($A119,ArenaRobotConfig!$B:$G,3,TRUE) -> 42 | E119: 5 | F119: 5 | G119: 5 | H119: 5 | I119: 5 | J119: 5 | L119: 10034 | M119: 10035 | N119: 10021 | O119: 10012 | P119: 10031 | Q119: 10027 | S119: 10034#10035#10021#10012#10031#10027
A120: 119 | B120: =VLOOKUP($A120,ArenaRobotConfig!$B:$G,6,TRUE) -> 76 | C120: =VLOOKUP($A120,ArenaRobotConfig!$B:$G,3,TRUE) -> 44 | E120: 5 | F120: 5 | G120: 5 | H120: 5 | I120: 5 | J120: 5 | L120: 10034 | M120: 10002 | N120: 10042 | O120: 10039 | P120: 10089 | Q120: 10017 | S120: 10034#10002#10042#10039#10089#10017
A121: 120 | B121: =VLOOKUP($A121,ArenaRobotConfig!$B:$G,6,TRUE) -> 83 | C121: =VLOOKUP($A121,ArenaRobotConfig!$B:$G,3,TRUE) -> 44 | E121: 5 | F121: 5 | G121: 5 | H121: 5 | I121: 5 | J121: 5 | L121: 10003 | M121: 10005 | N121: 10004 | O121: 10023 | P121: 10031 | Q121: 10046 | S121: 10003#10005#10004#10023#10031#10046
A122: 121 | B122: =VLOOKUP($A122,ArenaRobotConfig!$B:$G,6,TRUE) -> 81 | C122: =VLOOKUP($A122,ArenaRobotConfig!$B:$G,3,TRUE) -> 44 | E122: 5 | F122: 5 | G122: 5 | H122: 5 | I122: 5 | J122: 5 | L122: 10036 | M122: 10085 | N122: 10086 | O122: 10029 | P122: 10024 | Q122: 10032 | S122: 10036#10085#10086#10029#10024#10032
A123: 122 | B123: =VLOOKUP($A123,ArenaRobotConfig!$B:$G,6,TRUE) -> 74 | C123: =VLOOKUP($A123,ArenaRobotConfig!$B:$G,3,TRUE) -> 43 | E123: 5 | F123: 5 | G123: 5 | H123: 5 | I123: 5 | J123: 5 | L123: 10006 | M123: 10002 | N123: 10008 | O123: 10043 | P123: 10031 | Q123: 10033 | S123: 10006#10002#10008#10043#10031#10033
A124: 123 | B124: =VLOOKUP($A124,ArenaRobotConfig!$B:$G,6,TRUE) -> 76 | C124: =VLOOKUP($A124,ArenaRobotConfig!$B:$G,3,TRUE) -> 41 | E124: 5 | F124: 5 | G124: 5 | H124: 5 | I124: 5 | J124: 5 | L124: 10001 | M124: 10037 | N124: 10011 | O124: 10023 | P124: 10045 | Q124: 10014 | S124: 10001#10037#10011#10023#10045#10014
A125: 124 | B125: =VLOOKUP($A125,ArenaRobotConfig!$B:$G,6,TRUE) -> 77 | C125: =VLOOKUP($A125,ArenaRobotConfig!$B:$G,3,TRUE) -> 42 | E125: 5 | F125: 5 | G125: 5 | H125: 5 | I125: 5 | J125: 5 | L125: 10001 | M125: 10005 | N125: 10042 | O125: 10012 | P125: 10015 | Q125: 10032 | S125: 10001#10005#10042#10012#10015#10032
A126: 125 | B126: =VLOOKUP($A126,ArenaRobotConfig!$B:$G,6,TRUE) -> 84 | C126: =VLOOKUP($A126,ArenaRobotConfig!$B:$G,3,TRUE) -> 43 | E126: 5 | F126: 5 | G126: 5 | H126: 5 | I126: 5 | J126: 5 | L126: 10034 | M126: 10035 | N126: 10004 | O126: 10012 | P126: 10015 | Q126: 10017 | S126: 10034#10035#10004#10012#10015#10017
A127: 126 | B127: =VLOOKUP($A127,ArenaRobotConfig!$B:$G,6,TRUE) -> 79 | C127: =VLOOKUP($A127,ArenaRobotConfig!$B:$G,3,TRUE) -> 41 | E127: 5 | F127: 5 | G127: 5 | H127: 5 | I127: 5 | J127: 5 | L127: 10019 | M127: 10035 | N127: 10038 | O127: 10043 | P127: 10030 | Q127: 10041 | S127: 10019#10035#10038#10043#10030#10041
A128: 127 | B128: =VLOOKUP($A128,ArenaRobotConfig!$B:$G,6,TRUE) -> 76 | C128: =VLOOKUP($A128,ArenaRobotConfig!$B:$G,3,TRUE) -> 41 | E128: 5 | F128: 5 | G128: 5 | H128: 5 | I128: 5 | J128: 5 | L128: 10019 | M128: 10005 | N128: 10042 | O128: 10029 | P128: 10045 | Q128: 10027 | S128: 10019#10005#10042#10029#10045#10027
A129: 128 | B129: =VLOOKUP($A129,ArenaRobotConfig!$B:$G,6,TRUE) -> 78 | C129: =VLOOKUP($A129,ArenaRobotConfig!$B:$G,3,TRUE) -> 45 | E129: 5 | F129: 5 | G129: 5 | H129: 5 | I129: 5 | J129: 5 | L129: 10044 | M129: 10037 | N129: 10042 | O129: 10012 | P129: 10013 | Q129: 10027 | S129: 10044#10037#10042#10012#10013#10027
A130: 129 | B130: =VLOOKUP($A130,ArenaRobotConfig!$B:$G,6,TRUE) -> 78 | C130: =VLOOKUP($A130,ArenaRobotConfig!$B:$G,3,TRUE) -> 42 | E130: 5 | F130: 5 | G130: 5 | H130: 5 | I130: 5 | J130: 5 | L130: 10019 | M130: 10007 | N130: 10011 | O130: 10028 | P130: 10040 | Q130: 10026 | S130: 10019#10007#10011#10028#10040#10026
A131: 130 | B131: =VLOOKUP($A131,ArenaRobotConfig!$B:$G,6,TRUE) -> 84 | C131: =VLOOKUP($A131,ArenaRobotConfig!$B:$G,3,TRUE) -> 43 | E131: 5 | F131: 5 | G131: 5 | H131: 5 | I131: 5 | J131: 5 | L131: 10036 | M131: 10020 | N131: 10038 | O131: 10029 | P131: 10025 | Q131: 10041 | S131: =L131&"#"&M131&"#"&N131&"#"&O131&"#"&P131&"#"&Q131 -> 10036#10020#10038#10029#10025#10041
A132: 131 | B132: =VLOOKUP($A132,ArenaRobotConfig!$B:$G,6,TRUE) -> 83 | C132: =VLOOKUP($A132,ArenaRobotConfig!$B:$G,3,TRUE) -> 45 | E132: 5 | F132: 5 | G132: 5 | H132: 5 | I132: 5 | J132: 5 | L132: 10006 | M132: 10020 | N132: 10011 | O132: 10039 | P132: 10089 | Q132: 10014 | S132: 10006#10020#10011#10039#10089#10014
A133: 132 | B133: =VLOOKUP($A133,ArenaRobotConfig!$B:$G,6,TRUE) -> 76 | C133: =VLOOKUP($A133,ArenaRobotConfig!$B:$G,3,TRUE) -> 43 | E133: 5 | F133: 5 | G133: 5 | H133: 5 | I133: 5 | J133: 5 | L133: 10044 | M133: 10010 | N133: 10086 | O133: 10028 | P133: 10030 | Q133: 10027 | S133: 10044#10010#10086#10028#10030#10027
A134: 133 | B134: =VLOOKUP($A134,ArenaRobotConfig!$B:$G,6,TRUE) -> 78 | C134: =VLOOKUP($A134,ArenaRobotConfig!$B:$G,3,TRUE) -> 41 | E134: 5 | F134: 5 | G134: 5 | H134: 5 | I134: 5 | J134: 5 | L134: 10006 | M134: 10020 | N134: 10038 | O134: 10039 | P134: 10045 | Q134: 10033 | S134: 10006#10020#10038#10039#10045#10033
A135: 134 | B135: =VLOOKUP($A135,ArenaRobotConfig!$B:$G,6,TRUE) -> 82 | C135: =VLOOKUP($A135,ArenaRobotConfig!$B:$G,3,TRUE) -> 42 | E135: 5 | F135: 5 | G135: 5 | H135: 5 | I135: 5 | J135: 5 | L135: 10003 | M135: 10035 | N135: 10042 | O135: 10043 | P135: 10015 | Q135: 10032 | S135: 10003#10035#10042#10043#10015#10032
A136: 135 | B136: =VLOOKUP($A136,ArenaRobotConfig!$B:$G,6,TRUE) -> 79 | C136: =VLOOKUP($A136,ArenaRobotConfig!$B:$G,3,TRUE) -> 45 | E136: 5 | F136: 5 | G136: 5 | H136: 5 | I136: 5 | J136: 5 | L136: 10044 | M136: 10035 | N136: 10086 | O136: 10023 | P136: 10030 | Q136: 10033 | S136: 10044#10035#10086#10023#10030#10033
A137: 136 | B137: =VLOOKUP($A137,ArenaRobotConfig!$B:$G,6,TRUE) -> 77 | C137: =VLOOKUP($A137,ArenaRobotConfig!$B:$G,3,TRUE) -> 41 | E137: 5 | F137: 5 | G137: 5 | H137: 5 | I137: 5 | J137: 5 | L137: 10006 | M137: 10085 | N137: 10004 | O137: 10039 | P137: 10040 | Q137: 10032 | S137: 10006#10085#10004#10039#10040#10032
A138: 137 | B138: =VLOOKUP($A138,ArenaRobotConfig!$B:$G,6,TRUE) -> 83 | C138: =VLOOKUP($A138,ArenaRobotConfig!$B:$G,3,TRUE) -> 45 | E138: 5 | F138: 5 | G138: 5 | H138: 5 | I138: 5 | J138: 5 | L138: 10036 | M138: 10035 | N138: 10042 | O138: 10028 | P138: 10030 | Q138: 10046 | S138: 10036#10035#10042#10028#10030#10046
A139: 138 | B139: =VLOOKUP($A139,ArenaRobotConfig!$B:$G,6,TRUE) -> 76 | C139: =VLOOKUP($A139,ArenaRobotConfig!$B:$G,3,TRUE) -> 44 | E139: 5 | F139: 5 | G139: 5 | H139: 5 | I139: 5 | J139: 5 | L139: 10003 | M139: 10005 | N139: 10011 | O139: 10009 | P139: 10030 | Q139: 10032 | S139: 10003#10005#10011#10009#10030#10032
A140: 139 | B140: =VLOOKUP($A140,ArenaRobotConfig!$B:$G,6,TRUE) -> 85 | C140: =VLOOKUP($A140,ArenaRobotConfig!$B:$G,3,TRUE) -> 43 | E140: 5 | F140: 5 | G140: 5 | H140: 5 | I140: 5 | J140: 5 | L140: 10018 | M140: 10085 | N140: 10011 | O140: 10029 | P140: 10031 | Q140: 10027 | S140: 10018#10085#10011#10029#10031#10027
A141: 140 | B141: =VLOOKUP($A141,ArenaRobotConfig!$B:$G,6,TRUE) -> 101 | C141: =VLOOKUP($A141,ArenaRobotConfig!$B:$G,3,TRUE) -> 61 | E141: 5 | F141: 5 | G141: 5 | H141: 5 | I141: 5 | J141: 5 | L141: 10018 | M141: 10010 | N141: 10016 | O141: 10022 | P141: 10040 | Q141: 10027 | S141: 10018#10010#10016#10022#10040#10027
A142: 141 | B142: =VLOOKUP($A142,ArenaRobotConfig!$B:$G,6,TRUE) -> 100 | C142: =VLOOKUP($A142,ArenaRobotConfig!$B:$G,3,TRUE) -> 69 | E142: 5 | F142: 5 | G142: 5 | H142: 5 | I142: 5 | J142: 5 | L142: 10044 | M142: 10085 | N142: 10016 | O142: 10009 | P142: 10015 | Q142: 10017 | S142: 10044#10085#10016#10009#10015#10017
A143: 142 | B143: =VLOOKUP($A143,ArenaRobotConfig!$B:$G,6,TRUE) -> 102 | C143: =VLOOKUP($A143,ArenaRobotConfig!$B:$G,3,TRUE) -> 65 | E143: 5 | F143: 5 | G143: 5 | H143: 5 | I143: 5 | J143: 5 | L143: 10001 | M143: 10087 | N143: 10021 | O143: 10009 | P143: 10013 | Q143: 10014 | S143: 10001#10087#10021#10009#10013#10014
A144: 143 | B144: =VLOOKUP($A144,ArenaRobotConfig!$B:$G,6,TRUE) -> 107 | C144: =VLOOKUP($A144,ArenaRobotConfig!$B:$G,3,TRUE) -> 65 | E144: 5 | F144: 5 | G144: 5 | H144: 5 | I144: 5 | J144: 5 | L144: 10001 | M144: 10087 | N144: 10004 | O144: 10022 | P144: 10024 | Q144: 10041 | S144: 10001#10087#10004#10022#10024#10041
A145: 144 | B145: =VLOOKUP($A145,ArenaRobotConfig!$B:$G,6,TRUE) -> 104 | C145: =VLOOKUP($A145,ArenaRobotConfig!$B:$G,3,TRUE) -> 67 | E145: 5 | F145: 5 | G145: 5 | H145: 5 | I145: 5 | J145: 5 | L145: 10036 | M145: 10005 | N145: 10021 | O145: 10009 | P145: 10015 | Q145: 10090 | S145: 10036#10005#10021#10009#10015#10090
A146: 145 | B146: =VLOOKUP($A146,ArenaRobotConfig!$B:$G,6,TRUE) -> 117 | C146: =VLOOKUP($A146,ArenaRobotConfig!$B:$G,3,TRUE) -> 68 | E146: 5 | F146: 5 | G146: 5 | H146: 5 | I146: 5 | J146: 5 | L146: 10003 | M146: 10005 | N146: 10038 | O146: 10023 | P146: 10013 | Q146: 10032 | S146: 10003#10005#10038#10023#10013#10032
A147: 146 | B147: =VLOOKUP($A147,ArenaRobotConfig!$B:$G,6,TRUE) -> 109 | C147: =VLOOKUP($A147,ArenaRobotConfig!$B:$G,3,TRUE) -> 70 | E147: 5 | F147: 5 | G147: 5 | H147: 5 | I147: 5 | J147: 5 | L147: 10003 | M147: 10002 | N147: 10038 | O147: 10088 | P147: 10089 | Q147: 10026 | S147: 10003#10002#10038#10088#10089#10026
A148: 147 | B148: =VLOOKUP($A148,ArenaRobotConfig!$B:$G,6,TRUE) -> 110 | C148: =VLOOKUP($A148,ArenaRobotConfig!$B:$G,3,TRUE) -> 64 | E148: 5 | F148: 5 | G148: 5 | H148: 5 | I148: 5 | J148: 5 | L148: 10034 | M148: 10010 | N148: 10011 | O148: 10029 | P148: 10030 | Q148: 10033 | S148: 10034#10010#10011#10029#10030#10033
A149: 148 | B149: =VLOOKUP($A149,ArenaRobotConfig!$B:$G,6,TRUE) -> 113 | C149: =VLOOKUP($A149,ArenaRobotConfig!$B:$G,3,TRUE) -> 68 | E149: 5 | F149: 5 | G149: 5 | H149: 5 | I149: 5 | J149: 5 | L149: 10044 | M149: 10010 | N149: 10086 | O149: 10012 | P149: 10040 | Q149: 10026 | S149: 10044#10010#10086#10012#10040#10026
A150: 149 | B150: =VLOOKUP($A150,ArenaRobotConfig!$B:$G,6,TRUE) -> 119 | C150: =VLOOKUP($A150,ArenaRobotConfig!$B:$G,3,TRUE) -> 61 | E150: 5 | F150: 5 | G150: 5 | H150: 5 | I150: 5 | J150: 5 | L150: 10036 | M150: 10085 | N150: 10021 | O150: 10028 | P150: 10013 | Q150: 10041 | S150: 10036#10085#10021#10028#10013#10041
A151: 150 | B151: =VLOOKUP($A151,ArenaRobotConfig!$B:$G,6,TRUE) -> 107 | C151: =VLOOKUP($A151,ArenaRobotConfig!$B:$G,3,TRUE) -> 67 | E151: 5 | F151: 5 | G151: 5 | H151: 5 | I151: 5 | J151: 5 | L151: 10006 | M151: 10005 | N151: 10038 | O151: 10012 | P151: 10015 | Q151: 10014 | S151: 10006#10005#10038#10012#10015#10014
A152: 151 | B152: =VLOOKUP($A152,ArenaRobotConfig!$B:$G,6,TRUE) -> 108 | C152: =VLOOKUP($A152,ArenaRobotConfig!$B:$G,3,TRUE) -> 64 | E152: 5 | F152: 5 | G152: 5 | H152: 5 | I152: 5 | J152: 5 | L152: 10019 | M152: 10037 | N152: 10004 | O152: 10029 | P152: 10045 | Q152: 10026 | S152: 10019#10037#10004#10029#10045#10026
A153: 152 | B153: =VLOOKUP($A153,ArenaRobotConfig!$B:$G,6,TRUE) -> 112 | C153: =VLOOKUP($A153,ArenaRobotConfig!$B:$G,3,TRUE) -> 70 | E153: 5 | F153: 5 | G153: 5 | H153: 5 | I153: 5 | J153: 5 | L153: 10018 | M153: 10005 | N153: 10004 | O153: 10028 | P153: 10030 | Q153: 10041 | S153: 10018#10005#10004#10028#10030#10041
A154: 153 | B154: =VLOOKUP($A154,ArenaRobotConfig!$B:$G,6,TRUE) -> 101 | C154: =VLOOKUP($A154,ArenaRobotConfig!$B:$G,3,TRUE) -> 61 | E154: 5 | F154: 5 | G154: 5 | H154: 5 | I154: 5 | J154: 5 | L154: 10036 | M154: 10005 | N154: 10008 | O154: 10022 | P154: 10089 | Q154: 10046 | S154: 10036#10005#10008#10022#10089#10046
A155: 154 | B155: =VLOOKUP($A155,ArenaRobotConfig!$B:$G,6,TRUE) -> 103 | C155: =VLOOKUP($A155,ArenaRobotConfig!$B:$G,3,TRUE) -> 65 | E155: 5 | F155: 5 | G155: 5 | H155: 5 | I155: 5 | J155: 5 | L155: 10019 | M155: 10005 | N155: 10038 | O155: 10012 | P155: 10015 | Q155: 10032 | S155: 10019#10005#10038#10012#10015#10032
A156: 155 | B156: =VLOOKUP($A156,ArenaRobotConfig!$B:$G,6,TRUE) -> 103 | C156: =VLOOKUP($A156,ArenaRobotConfig!$B:$G,3,TRUE) -> 64 | E156: 5 | F156: 5 | G156: 5 | H156: 5 | I156: 5 | J156: 5 | L156: 10006 | M156: 10087 | N156: 10021 | O156: 10023 | P156: 10040 | Q156: 10027 | S156: 10006#10087#10021#10023#10040#10027
A157: 156 | B157: =VLOOKUP($A157,ArenaRobotConfig!$B:$G,6,TRUE) -> 101 | C157: =VLOOKUP($A157,ArenaRobotConfig!$B:$G,3,TRUE) -> 62 | E157: 5 | F157: 5 | G157: 5 | H157: 5 | I157: 5 | J157: 5 | L157: 10003 | M157: 10037 | N157: 10086 | O157: 10088 | P157: 10024 | Q157: 10026 | S157: 10003#10037#10086#10088#10024#10026
A158: 157 | B158: =VLOOKUP($A158,ArenaRobotConfig!$B:$G,6,TRUE) -> 117 | C158: =VLOOKUP($A158,ArenaRobotConfig!$B:$G,3,TRUE) -> 60 | E158: 5 | F158: 5 | G158: 5 | H158: 5 | I158: 5 | J158: 5 | L158: 10018 | M158: 10005 | N158: 10008 | O158: 10028 | P158: 10024 | Q158: 10032 | S158: 10018#10005#10008#10028#10024#10032
A159: 158 | B159: =VLOOKUP($A159,ArenaRobotConfig!$B:$G,6,TRUE) -> 101 | C159: =VLOOKUP($A159,ArenaRobotConfig!$B:$G,3,TRUE) -> 70 | E159: 5 | F159: 5 | G159: 5 | H159: 5 | I159: 5 | J159: 5 | L159: 10001 | M159: 10035 | N159: 10008 | O159: 10028 | P159: 10013 | Q159: 10017 | S159: 10001#10035#10008#10028#10013#10017
A160: 159 | B160: =VLOOKUP($A160,ArenaRobotConfig!$B:$G,6,TRUE) -> 120 | C160: =VLOOKUP($A160,ArenaRobotConfig!$B:$G,3,TRUE) -> 68 | E160: 5 | F160: 5 | G160: 5 | H160: 5 | I160: 5 | J160: 5 | L160: 10044 | M160: 10002 | N160: 10016 | O160: 10039 | P160: 10024 | Q160: 10017 | S160: 10044#10002#10016#10039#10024#10017
A161: 160 | B161: =VLOOKUP($A161,ArenaRobotConfig!$B:$G,6,TRUE) -> 119 | C161: =VLOOKUP($A161,ArenaRobotConfig!$B:$G,3,TRUE) -> 62 | E161: 5 | F161: 5 | G161: 5 | H161: 5 | I161: 5 | J161: 5 | L161: 10044 | M161: 10002 | N161: 10021 | O161: 10088 | P161: 10015 | Q161: 10090 | S161: 10044#10002#10021#10088#10015#10090
A162: 161 | B162: =VLOOKUP($A162,ArenaRobotConfig!$B:$G,6,TRUE) -> 101 | C162: =VLOOKUP($A162,ArenaRobotConfig!$B:$G,3,TRUE) -> 70 | E162: 5 | F162: 5 | G162: 5 | H162: 5 | I162: 5 | J162: 5 | L162: 10034 | M162: 10035 | N162: 10011 | O162: 10088 | P162: 10040 | Q162: 10027 | S162: 10034#10035#10011#10088#10040#10027
A163: 162 | B163: =VLOOKUP($A163,ArenaRobotConfig!$B:$G,6,TRUE) -> 107 | C163: =VLOOKUP($A163,ArenaRobotConfig!$B:$G,3,TRUE) -> 65 | E163: 5 | F163: 5 | G163: 5 | H163: 5 | I163: 5 | J163: 5 | L163: 10036 | M163: 10002 | N163: 10008 | O163: 10023 | P163: 10024 | Q163: 10027 | S163: 10036#10002#10008#10023#10024#10027
A164: 163 | B164: =VLOOKUP($A164,ArenaRobotConfig!$B:$G,6,TRUE) -> 112 | C164: =VLOOKUP($A164,ArenaRobotConfig!$B:$G,3,TRUE) -> 61 | E164: 5 | F164: 5 | G164: 5 | H164: 5 | I164: 5 | J164: 5 | L164: 10036 | M164: 10087 | N164: 10042 | O164: 10009 | P164: 10040 | Q164: 10027 | S164: 10036#10087#10042#10009#10040#10027
A165: 164 | B165: =VLOOKUP($A165,ArenaRobotConfig!$B:$G,6,TRUE) -> 107 | C165: =VLOOKUP($A165,ArenaRobotConfig!$B:$G,3,TRUE) -> 61 | E165: 5 | F165: 5 | G165: 5 | H165: 5 | I165: 5 | J165: 5 | L165: 10003 | M165: 10035 | N165: 10004 | O165: 10088 | P165: 10040 | Q165: 10014 | S165: 10003#10035#10004#10088#10040#10014
A166: 165 | B166: =VLOOKUP($A166,ArenaRobotConfig!$B:$G,6,TRUE) -> 116 | C166: =VLOOKUP($A166,ArenaRobotConfig!$B:$G,3,TRUE) -> 66 | E166: 5 | F166: 5 | G166: 5 | H166: 5 | I166: 5 | J166: 5 | L166: 10001 | M166: 10037 | N166: 10042 | O166: 10009 | P166: 10031 | Q166: 10090 | S166: 10001#10037#10042#10009#10031#10090
A167: 166 | B167: =VLOOKUP($A167,ArenaRobotConfig!$B:$G,6,TRUE) -> 100 | C167: =VLOOKUP($A167,ArenaRobotConfig!$B:$G,3,TRUE) -> 65 | E167: 5 | F167: 5 | G167: 5 | H167: 5 | I167: 5 | J167: 5 | L167: 10006 | M167: 10037 | N167: 10016 | O167: 10028 | P167: 10025 | Q167: 10032 | S167: 10006#10037#10016#10028#10025#10032
A168: 167 | B168: =VLOOKUP($A168,ArenaRobotConfig!$B:$G,6,TRUE) -> 109 | C168: =VLOOKUP($A168,ArenaRobotConfig!$B:$G,3,TRUE) -> 60 | E168: 5 | F168: 5 | G168: 5 | H168: 5 | I168: 5 | J168: 5 | L168: 10018 | M168: 10037 | N168: 10004 | O168: 10009 | P168: 10030 | Q168: 10033 | S168: 10018#10037#10004#10009#10030#10033
A169: 168 | B169: =VLOOKUP($A169,ArenaRobotConfig!$B:$G,6,TRUE) -> 112 | C169: =VLOOKUP($A169,ArenaRobotConfig!$B:$G,3,TRUE) -> 69 | E169: 5 | F169: 5 | G169: 5 | H169: 5 | I169: 5 | J169: 5 | L169: 10036 | M169: 10002 | N169: 10021 | O169: 10028 | P169: 10015 | Q169: 10026 | S169: 10036#10002#10021#10028#10015#10026
A170: 169 | B170: =VLOOKUP($A170,ArenaRobotConfig!$B:$G,6,TRUE) -> 101 | C170: =VLOOKUP($A170,ArenaRobotConfig!$B:$G,3,TRUE) -> 70 | E170: 5 | F170: 5 | G170: 5 | H170: 5 | I170: 5 | J170: 5 | L170: 10036 | M170: 10020 | N170: 10021 | O170: 10009 | P170: 10089 | Q170: 10017 | S170: 10036#10020#10021#10009#10089#10017
A171: 170 | B171: =VLOOKUP($A171,ArenaRobotConfig!$B:$G,6,TRUE) -> 174 | C171: =VLOOKUP($A171,ArenaRobotConfig!$B:$G,3,TRUE) -> 100 | E171: 5 | F171: 5 | G171: 5 | H171: 5 | I171: 5 | J171: 5 | L171: 10006 | M171: 10002 | N171: 10086 | O171: 10088 | P171: 10025 | Q171: 10032 | S171: 10006#10002#10086#10088#10025#10032
A172: 171 | B172: =VLOOKUP($A172,ArenaRobotConfig!$B:$G,6,TRUE) -> 155 | C172: =VLOOKUP($A172,ArenaRobotConfig!$B:$G,3,TRUE) -> 91 | E172: 5 | F172: 5 | G172: 5 | H172: 5 | I172: 5 | J172: 5 | L172: 10006 | M172: 10010 | N172: 10016 | O172: 10088 | P172: 10045 | Q172: 10017 | S172: 10006#10010#10016#10088#10045#10017
A173: 172 | B173: =VLOOKUP($A173,ArenaRobotConfig!$B:$G,6,TRUE) -> 178 | C173: =VLOOKUP($A173,ArenaRobotConfig!$B:$G,3,TRUE) -> 100 | E173: 5 | F173: 5 | G173: 5 | H173: 5 | I173: 5 | J173: 5 | L173: 10044 | M173: 10037 | N173: 10038 | O173: 10022 | P173: 10013 | Q173: 10017 | S173: 10044#10037#10038#10022#10013#10017
A174: 173 | B174: =VLOOKUP($A174,ArenaRobotConfig!$B:$G,6,TRUE) -> 175 | C174: =VLOOKUP($A174,ArenaRobotConfig!$B:$G,3,TRUE) -> 90 | E174: 5 | F174: 5 | G174: 5 | H174: 5 | I174: 5 | J174: 5 | L174: 10034 | M174: 10037 | N174: 10086 | O174: 10029 | P174: 10024 | Q174: 10041 | S174: 10034#10037#10086#10029#10024#10041
A175: 174 | B175: =VLOOKUP($A175,ArenaRobotConfig!$B:$G,6,TRUE) -> 178 | C175: =VLOOKUP($A175,ArenaRobotConfig!$B:$G,3,TRUE) -> 87 | E175: 5 | F175: 5 | G175: 5 | H175: 5 | I175: 5 | J175: 5 | L175: 10036 | M175: 10020 | N175: 10042 | O175: 10012 | P175: 10025 | Q175: 10014 | S175: 10036#10020#10042#10012#10025#10014
A176: 175 | B176: =VLOOKUP($A176,ArenaRobotConfig!$B:$G,6,TRUE) -> 168 | C176: =VLOOKUP($A176,ArenaRobotConfig!$B:$G,3,TRUE) -> 105 | E176: 5 | F176: 5 | G176: 5 | H176: 5 | I176: 5 | J176: 5 | L176: 10018 | M176: 10087 | N176: 10008 | O176: 10012 | P176: 10015 | Q176: 10027 | S176: 10018#10087#10008#10012#10015#10027
A177: 176 | B177: =VLOOKUP($A177,ArenaRobotConfig!$B:$G,6,TRUE) -> 149 | C177: =VLOOKUP($A177,ArenaRobotConfig!$B:$G,3,TRUE) -> 98 | E177: 5 | F177: 5 | G177: 5 | H177: 5 | I177: 5 | J177: 5 | L177: 10006 | M177: 10035 | N177: 10086 | O177: 10028 | P177: 10015 | Q177: 10026 | S177: 10006#10035#10086#10028#10015#10026
A178: 177 | B178: =VLOOKUP($A178,ArenaRobotConfig!$B:$G,6,TRUE) -> 165 | C178: =VLOOKUP($A178,ArenaRobotConfig!$B:$G,3,TRUE) -> 105 | E178: 5 | F178: 5 | G178: 5 | H178: 5 | I178: 5 | J178: 5 | L178: 10006 | M178: 10005 | N178: 10086 | O178: 10009 | P178: 10024 | Q178: 10032 | S178: 10006#10005#10086#10009#10024#10032
A179: 178 | B179: =VLOOKUP($A179,ArenaRobotConfig!$B:$G,6,TRUE) -> 173 | C179: =VLOOKUP($A179,ArenaRobotConfig!$B:$G,3,TRUE) -> 99 | E179: 5 | F179: 5 | G179: 5 | H179: 5 | I179: 5 | J179: 5 | L179: 10018 | M179: 10005 | N179: 10021 | O179: 10012 | P179: 10040 | Q179: 10046 | S179: 10018#10005#10021#10012#10040#10046
A180: 179 | B180: =VLOOKUP($A180,ArenaRobotConfig!$B:$G,6,TRUE) -> 154 | C180: =VLOOKUP($A180,ArenaRobotConfig!$B:$G,3,TRUE) -> 87 | E180: 5 | F180: 5 | G180: 5 | H180: 5 | I180: 5 | J180: 5 | L180: 10019 | M180: 10010 | N180: 10042 | O180: 10043 | P180: 10031 | Q180: 10014 | S180: 10019#10010#10042#10043#10031#10014
A181: 180 | B181: =VLOOKUP($A181,ArenaRobotConfig!$B:$G,6,TRUE) -> 168 | C181: =VLOOKUP($A181,ArenaRobotConfig!$B:$G,3,TRUE) -> 91 | E181: 5 | F181: 5 | G181: 5 | H181: 5 | I181: 5 | J181: 5 | L181: 10006 | M181: 10037 | N181: 10008 | O181: 10088 | P181: 10030 | Q181: 10090 | S181: 10006#10037#10008#10088#10030#10090
A182: 181 | B182: =VLOOKUP($A182,ArenaRobotConfig!$B:$G,6,TRUE) -> 180 | C182: =VLOOKUP($A182,ArenaRobotConfig!$B:$G,3,TRUE) -> 87 | E182: 5 | F182: 5 | G182: 5 | H182: 5 | I182: 5 | J182: 5 | L182: 10036 | M182: 10037 | N182: 10042 | O182: 10028 | P182: 10025 | Q182: 10090 | S182: 10036#10037#10042#10028#10025#10090
A183: 182 | B183: =VLOOKUP($A183,ArenaRobotConfig!$B:$G,6,TRUE) -> 169 | C183: =VLOOKUP($A183,ArenaRobotConfig!$B:$G,3,TRUE) -> 85 | E183: 5 | F183: 5 | G183: 5 | H183: 5 | I183: 5 | J183: 5 | L183: 10001 | M183: 10020 | N183: 10016 | O183: 10022 | P183: 10031 | Q183: 10090 | S183: 10001#10020#10016#10022#10031#10090
A184: 183 | B184: =VLOOKUP($A184,ArenaRobotConfig!$B:$G,6,TRUE) -> 165 | C184: =VLOOKUP($A184,ArenaRobotConfig!$B:$G,3,TRUE) -> 93 | E184: 5 | F184: 5 | G184: 5 | H184: 5 | I184: 5 | J184: 5 | L184: 10034 | M184: 10007 | N184: 10004 | O184: 10012 | P184: 10024 | Q184: 10033 | S184: 10034#10007#10004#10012#10024#10033
A185: 184 | B185: =VLOOKUP($A185,ArenaRobotConfig!$B:$G,6,TRUE) -> 151 | C185: =VLOOKUP($A185,ArenaRobotConfig!$B:$G,3,TRUE) -> 93 | E185: 5 | F185: 5 | G185: 5 | H185: 5 | I185: 5 | J185: 5 | L185: 10001 | M185: 10002 | N185: 10042 | O185: 10029 | P185: 10030 | Q185: 10014 | S185: 10001#10002#10042#10029#10030#10014
A186: 185 | B186: =VLOOKUP($A186,ArenaRobotConfig!$B:$G,6,TRUE) -> 179 | C186: =VLOOKUP($A186,ArenaRobotConfig!$B:$G,3,TRUE) -> 90 | E186: 5 | F186: 5 | G186: 5 | H186: 5 | I186: 5 | J186: 5 | L186: 10036 | M186: 10020 | N186: 10008 | O186: 10088 | P186: 10015 | Q186: 10033 | S186: 10036#10020#10008#10088#10015#10033
A187: 186 | B187: =VLOOKUP($A187,ArenaRobotConfig!$B:$G,6,TRUE) -> 175 | C187: =VLOOKUP($A187,ArenaRobotConfig!$B:$G,3,TRUE) -> 97 | E187: 5 | F187: 5 | G187: 5 | H187: 5 | I187: 5 | J187: 5 | L187: 10019 | M187: 10010 | N187: 10038 | O187: 10088 | P187: 10015 | Q187: 10026 | S187: 10019#10010#10038#10088#10015#10026
A188: 187 | B188: =VLOOKUP($A188,ArenaRobotConfig!$B:$G,6,TRUE) -> 144 | C188: =VLOOKUP($A188,ArenaRobotConfig!$B:$G,3,TRUE) -> 90 | E188: 5 | F188: 5 | G188: 5 | H188: 5 | I188: 5 | J188: 5 | L188: 10019 | M188: 10002 | N188: 10038 | O188: 10029 | P188: 10031 | Q188: 10017 | S188: 10019#10002#10038#10029#10031#10017
A189: 188 | B189: =VLOOKUP($A189,ArenaRobotConfig!$B:$G,6,TRUE) -> 152 | C189: =VLOOKUP($A189,ArenaRobotConfig!$B:$G,3,TRUE) -> 100 | E189: 5 | F189: 5 | G189: 5 | H189: 5 | I189: 5 | J189: 5 | L189: 10036 | M189: 10087 | N189: 10011 | O189: 10022 | P189: 10025 | Q189: 10017 | S189: 10036#10087#10011#10022#10025#10017
A190: 189 | B190: =VLOOKUP($A190,ArenaRobotConfig!$B:$G,6,TRUE) -> 166 | C190: =VLOOKUP($A190,ArenaRobotConfig!$B:$G,3,TRUE) -> 103 | E190: 5 | F190: 5 | G190: 5 | H190: 5 | I190: 5 | J190: 5 | L190: 10018 | M190: 10087 | N190: 10038 | O190: 10043 | P190: 10031 | Q190: 10017 | S190: 10018#10087#10038#10043#10031#10017
A191: 190 | B191: =VLOOKUP($A191,ArenaRobotConfig!$B:$G,6,TRUE) -> 157 | C191: =VLOOKUP($A191,ArenaRobotConfig!$B:$G,3,TRUE) -> 102 | E191: 5 | F191: 5 | G191: 5 | H191: 5 | I191: 5 | J191: 5 | L191: 10036 | M191: 10035 | N191: 10038 | O191: 10039 | P191: 10025 | Q191: 10027 | S191: 10036#10035#10038#10039#10025#10027
A192: 191 | B192: =VLOOKUP($A192,ArenaRobotConfig!$B:$G,6,TRUE) -> 148 | C192: =VLOOKUP($A192,ArenaRobotConfig!$B:$G,3,TRUE) -> 95 | E192: 5 | F192: 5 | G192: 5 | H192: 5 | I192: 5 | J192: 5 | L192: 10003 | M192: 10007 | N192: 10004 | O192: 10088 | P192: 10015 | Q192: 10033 | S192: 10003#10007#10004#10088#10015#10033
A193: 192 | B193: =VLOOKUP($A193,ArenaRobotConfig!$B:$G,6,TRUE) -> 170 | C193: =VLOOKUP($A193,ArenaRobotConfig!$B:$G,3,TRUE) -> 85 | E193: 5 | F193: 5 | G193: 5 | H193: 5 | I193: 5 | J193: 5 | L193: 10036 | M193: 10007 | N193: 10021 | O193: 10023 | P193: 10013 | Q193: 10041 | S193: 10036#10007#10021#10023#10013#10041
A194: 193 | B194: =VLOOKUP($A194,ArenaRobotConfig!$B:$G,6,TRUE) -> 162 | C194: =VLOOKUP($A194,ArenaRobotConfig!$B:$G,3,TRUE) -> 105 | E194: 5 | F194: 5 | G194: 5 | H194: 5 | I194: 5 | J194: 5 | L194: 10044 | M194: 10087 | N194: 10016 | O194: 10043 | P194: 10013 | Q194: 10027 | S194: 10044#10087#10016#10043#10013#10027
A195: 194 | B195: =VLOOKUP($A195,ArenaRobotConfig!$B:$G,6,TRUE) -> 177 | C195: =VLOOKUP($A195,ArenaRobotConfig!$B:$G,3,TRUE) -> 101 | E195: 5 | F195: 5 | G195: 5 | H195: 5 | I195: 5 | J195: 5 | L195: 10006 | M195: 10087 | N195: 10016 | O195: 10043 | P195: 10045 | Q195: 10033 | S195: =L195&"#"&M195&"#"&N195&"#"&O195&"#"&P195&"#"&Q195 -> 10006#10087#10016#10043#10045#10033
A196: 195 | B196: =VLOOKUP($A196,ArenaRobotConfig!$B:$G,6,TRUE) -> 173 | C196: =VLOOKUP($A196,ArenaRobotConfig!$B:$G,3,TRUE) -> 105 | E196: 5 | F196: 5 | G196: 5 | H196: 5 | I196: 5 | J196: 5 | L196: 10036 | M196: 10035 | N196: 10042 | O196: 10022 | P196: 10045 | Q196: 10033 | S196: 10036#10035#10042#10022#10045#10033
A197: 196 | B197: =VLOOKUP($A197,ArenaRobotConfig!$B:$G,6,TRUE) -> 161 | C197: =VLOOKUP($A197,ArenaRobotConfig!$B:$G,3,TRUE) -> 87 | E197: 5 | F197: 5 | G197: 5 | H197: 5 | I197: 5 | J197: 5 | L197: 10001 | M197: 10020 | N197: 10086 | O197: 10028 | P197: 10025 | Q197: 10026 | S197: 10001#10020#10086#10028#10025#10026
A198: 197 | B198: =VLOOKUP($A198,ArenaRobotConfig!$B:$G,6,TRUE) -> 159 | C198: =VLOOKUP($A198,ArenaRobotConfig!$B:$G,3,TRUE) -> 89 | E198: 5 | F198: 5 | G198: 5 | H198: 5 | I198: 5 | J198: 5 | L198: 10019 | M198: 10085 | N198: 10021 | O198: 10029 | P198: 10089 | Q198: 10014 | S198: 10019#10085#10021#10029#10089#10014
A199: 198 | B199: =VLOOKUP($A199,ArenaRobotConfig!$B:$G,6,TRUE) -> 152 | C199: =VLOOKUP($A199,ArenaRobotConfig!$B:$G,3,TRUE) -> 93 | E199: 5 | F199: 5 | G199: 5 | H199: 5 | I199: 5 | J199: 5 | L199: 10019 | M199: 10035 | N199: 10086 | O199: 10088 | P199: 10089 | Q199: 10026 | S199: 10019#10035#10086#10088#10089#10026
A200: 199 | B200: =VLOOKUP($A200,ArenaRobotConfig!$B:$G,6,TRUE) -> 155 | C200: =VLOOKUP($A200,ArenaRobotConfig!$B:$G,3,TRUE) -> 90 | E200: 5 | F200: 5 | G200: 5 | H200: 5 | I200: 5 | J200: 5 | L200: 10034 | M200: 10010 | N200: 10021 | O200: 10088 | P200: 10015 | Q200: 10014 | S200: 10034#10010#10021#10088#10015#10014
... 58 more rows
